Workbook

Sheet how to run

Sheet calculate
A1: sequence | B1: MHHHHHHMDRSKENCISGPVKATAPVGGPKRVLVTQQFPCQNPLPVNSGQAQRVLCPSNSSQRIPLQAQKLVSSHKPVQNQKQKQLQATSVPHPVSRPLNNTQKSKQPLPSAPENNPEEELASKQKNEESKKRQWALEDFEIGRPLGKGKFGNVYLAREKQSKFILALKVLFKAQLEKAGVEHQLRREVEIQSHLRHPNILRLYGYFHDATRVYLILEYAPLGTVYRELQKLSKFDEQRTATYITELANALSYCHSKRVIHRDIKPENLLLGSAGELKIADFGWSVHAPSSRRTTLCGTLDYLPPEMIEGRMHDEKVDLWSLGVLCYEFLVGKPPFEANTYQETYKRISRVEFTFPDFVTEGARDLISRLLKHNPSQRPMLREVLEHPWITANSSKPSNCQNKESASKQS
A2: sequence length | B2: =LEN(B1) -> 410
A3: first AA number | B3: 1 | C3: (if some sequence offset occurs)
A4: peptide from | B4: 1
A5: peptide to | B5: 20 | G5: =ČÁST(B1;(G3-G2)+1;(G4-G3)+1)
A6: peptide | B6: =MID(B1,(B4-B3)+1,(B5-B4)+1) -> MHHHHHHMDRSKENCISGPV | G6: =MID(B1,(B4-B3)+1,(B5-B4)+1)
A7: temperature (°C) | B7: 4
A8: pD | B8: 7.5
A9: bulgarian constant | B9: 1 | C9: (correction)
A10: timescale 0 to | B10: 120 | C10: s | D10: noD | E10: noEx
A11: graph time step | B11: 0.1 | C11: s | D11: =(B9)*SUM(D19:D36) -> 16.65626968 | E11: 17
A12: mol type | B12: poly
A13: omitted N-term bonds | B13: 1
B14: SEQ | C14: PREDICTED kc (/s)
A15: -1
A16: 0 | B16: NT | C16: =IF(OR(OR(OR(OR(OR(OR($B16="",$B16="P"),$B16="Pc"),$B16="Ac"),$B16="NT"),$B16="Nt"),$B15=""),0,IF($C$10="min",(do_not_touch_this_sheet!$K16+do_not_touch_this_sheet!$L16+do_not_touch_this_sheet!$M16)*60,IF($C$10="hr",3600*(do_not_touch_this_sheet!$K16+do_not_touch_this_sheet!$L16+do_not_touch_this_sheet!$M16),IF($C$10="s",(do_not_touch_this_sheet!$K16+do_not_touch_this_sheet!$L16+do_not_touch_this_sheet!$M16*0))))) -> 0 | D16: =1-EXP(-C16*$B$10) -> 0
A17: =A16+$B$3 -> 1 | B17: =MID($B$6,IF((A17-$B$3)=0,1,(A17-$B$3)+1),1) -> M | C17: =IF(OR(OR(OR(OR(OR(OR($B17="",$B17="P"),$B17="Pc"),$B17="Ac"),$B17="NT"),$B17="Nt"),$B16=""),0,IF($C$10="min",(do_not_touch_this_sheet!$K17+do_not_touch_this_sheet!$L17+do_not_touch_this_sheet!$M17)*60,IF($C$10="hr",3600*(do_not_touch_this_sheet!$K17+do_not_touch_this_sheet!$L17+do_not_touch_this_sheet!$M17),IF($C$10="s",(do_not_touch_this_sheet!$K17+do_not_touch_this_sheet!$L17+do_not_touch_this_sheet!$M17*0))))) -> 0 | D17: =1-EXP(-C17*$B$10) -> 0
A18: =A17+1 -> 2 | B18: =MID($B$6,IF((A18-$B$3)=0,1,(A18-$B$3)+1),1) -> H | C18: =IF(OR(OR(OR(OR(OR(OR($B18="",$B18="P"),$B18="Pc"),$B18="Ac"),$B18="NT"),$B18="Nt"),$B17=""),0,IF($C$10="min",(do_not_touch_this_sheet!$K18+do_not_touch_this_sheet!$L18+do_not_touch_this_sheet!$M18)*60,IF($C$10="hr",3600*(do_not_touch_this_sheet!$K18+do_not_touch_this_sheet!$L18+do_not_touch_this_sheet!$M18),IF($C$10="s",(do_not_touch_this_sheet!$K18+do_not_touch_this_sheet!$L18+do_not_touch_this_sheet!$M18*0))))) -> 175.8461518 | D18: 1
A19: =A18+1 -> 3 | B19: H | C19: =IF(OR(OR(OR(OR(OR(OR($B19="",$B19="P"),$B19="Pc"),$B19="Ac"),$B19="NT"),$B19="Nt"),$B18=""),0,IF($C$10="min",(do_not_touch_this_sheet!$K19+do_not_touch_this_sheet!$L19+do_not_touch_this_sheet!$M19)*60,IF($C$10="hr",3600*(do_not_touch_this_sheet!$K19+do_not_touch_this_sheet!$L19+do_not_touch_this_sheet!$M19),IF($C$10="s",(do_not_touch_this_sheet!$K19+do_not_touch_this_sheet!$L19+do_not_touch_this_sheet!$M19*0))))) -> 12.70196936 | D19: 1
A20: 4 | B20: H | C20: =IF(OR(OR(OR(OR(OR(OR($B20="",$B20="P"),$B20="Pc"),$B20="Ac"),$B20="NT"),$B20="Nt"),$B19=""),0,IF($C$10="min",(do_not_touch_this_sheet!$K20+do_not_touch_this_sheet!$L20+do_not_touch_this_sheet!$M20)*60,IF($C$10="hr",3600*(do_not_touch_this_sheet!$K20+do_not_touch_this_sheet!$L20+do_not_touch_this_sheet!$M20),IF($C$10="s",(do_not_touch_this_sheet!$K20+do_not_touch_this_sheet!$L20+do_not_touch_this_sheet!$M20*0))))) -> 12.70196936 | D20: 1
A21: 5 | B21: H | C21: =IF(OR(OR(OR(OR(OR(OR($B21="",$B21="P"),$B21="Pc"),$B21="Ac"),$B21="NT"),$B21="Nt"),$B20=""),0,IF($C$10="min",(do_not_touch_this_sheet!$K21+do_not_touch_this_sheet!$L21+do_not_touch_this_sheet!$M21)*60,IF($C$10="hr",3600*(do_not_touch_this_sheet!$K21+do_not_touch_this_sheet!$L21+do_not_touch_this_sheet!$M21),IF($C$10="s",(do_not_touch_this_sheet!$K21+do_not_touch_this_sheet!$L21+do_not_touch_this_sheet!$M21*0))))) -> 12.70196936 | D21: 1
A22: 6 | B22: H | C22: =IF(OR(OR(OR(OR(OR(OR($B22="",$B22="P"),$B22="Pc"),$B22="Ac"),$B22="NT"),$B22="Nt"),$B21=""),0,IF($C$10="min",(do_not_touch_this_sheet!$K22+do_not_touch_this_sheet!$L22+do_not_touch_this_sheet!$M22)*60,IF($C$10="hr",3600*(do_not_touch_this_sheet!$K22+do_not_touch_this_sheet!$L22+do_not_touch_this_sheet!$M22),IF($C$10="s",(do_not_touch_this_sheet!$K22+do_not_touch_this_sheet!$L22+do_not_touch_this_sheet!$M22*0))))) -> 12.70196936 | D22: 1
A23: 7 | B23: H | C23: =IF(OR(OR(OR(OR(OR(OR($B23="",$B23="P"),$B23="Pc"),$B23="Ac"),$B23="NT"),$B23="Nt"),$B22=""),0,IF($C$10="min",(do_not_touch_this_sheet!$K23+do_not_touch_this_sheet!$L23+do_not_touch_this_sheet!$M23)*60,IF($C$10="hr",3600*(do_not_touch_this_sheet!$K23+do_not_touch_this_sheet!$L23+do_not_touch_this_sheet!$M23),IF($C$10="s",(do_not_touch_this_sheet!$K23+do_not_touch_this_sheet!$L23+do_not_touch_this_sheet!$M23*0))))) -> 12.70196936 | D23: 1
A24: 8 | B24: M | C24: =IF(OR(OR(OR(OR(OR(OR($B24="",$B24="P"),$B24="Pc"),$B24="Ac"),$B24="NT"),$B24="Nt"),$B23=""),0,IF($C$10="min",(do_not_touch_this_sheet!$K24+do_not_touch_this_sheet!$L24+do_not_touch_this_sheet!$M24)*60,IF($C$10="hr",3600*(do_not_touch_this_sheet!$K24+do_not_touch_this_sheet!$L24+do_not_touch_this_sheet!$M24),IF($C$10="s",(do_not_touch_this_sheet!$K24+do_not_touch_this_sheet!$L24+do_not_touch_this_sheet!$M24*0))))) -> 3.707930138 | D24: 1
A25: 9 | B25: D | C25: =IF(OR(OR(OR(OR(OR(OR($B25="",$B25="P"),$B25="Pc"),$B25="Ac"),$B25="NT"),$B25="Nt"),$B24=""),0,IF($C$10="min",(do_not_touch_this_sheet!$K25+do_not_touch_this_sheet!$L25+do_not_touch_this_sheet!$M25)*60,IF($C$10="hr",3600*(do_not_touch_this_sheet!$K25+do_not_touch_this_sheet!$L25+do_not_touch_this_sheet!$M25),IF($C$10="s",(do_not_touch_this_sheet!$K25+do_not_touch_this_sheet!$L25+do_not_touch_this_sheet!$M25*0))))) -> 0.6353133548 | D25: 1
A26: 10 | B26: R | C26: =IF(OR(OR(OR(OR(OR(OR($B26="",$B26="P"),$B26="Pc"),$B26="Ac"),$B26="NT"),$B26="Nt"),$B25=""),0,IF($C$10="min",(do_not_touch_this_sheet!$K26+do_not_touch_this_sheet!$L26+do_not_touch_this_sheet!$M26)*60,IF($C$10="hr",3600*(do_not_touch_this_sheet!$K26+do_not_touch_this_sheet!$L26+do_not_touch_this_sheet!$M26),IF($C$10="s",(do_not_touch_this_sheet!$K26+do_not_touch_this_sheet!$L26+do_not_touch_this_sheet!$M26*0))))) -> 0.7729463821 | D26: 1
A27: 11 | B27: S | C27: =IF(OR(OR(OR(OR(OR(OR($B27="",$B27="P"),$B27="Pc"),$B27="Ac"),$B27="NT"),$B27="Nt"),$B26=""),0,IF($C$10="min",(do_not_touch_this_sheet!$K27+do_not_touch_this_sheet!$L27+do_not_touch_this_sheet!$M27)*60,IF($C$10="hr",3600*(do_not_touch_this_sheet!$K27+do_not_touch_this_sheet!$L27+do_not_touch_this_sheet!$M27),IF($C$10="s",(do_not_touch_this_sheet!$K27+do_not_touch_this_sheet!$L27+do_not_touch_this_sheet!$M27*0))))) -> 3.796192209 | D27: 1
A28: 12 | B28: K | C28: =IF(OR(OR(OR(OR(OR(OR($B28="",$B28="P"),$B28="Pc"),$B28="Ac"),$B28="NT"),$B28="Nt"),$B27=""),0,IF($C$10="min",(do_not_touch_this_sheet!$K28+do_not_touch_this_sheet!$L28+do_not_touch_this_sheet!$M28)*60,IF($C$10="hr",3600*(do_not_touch_this_sheet!$K28+do_not_touch_this_sheet!$L28+do_not_touch_this_sheet!$M28),IF($C$10="s",(do_not_touch_this_sheet!$K28+do_not_touch_this_sheet!$L28+do_not_touch_this_sheet!$M28*0))))) -> 1.773774794 | D28: 1
A29: 13 | B29: E | C29: =IF(OR(OR(OR(OR(OR(OR($B29="",$B29="P"),$B29="Pc"),$B29="Ac"),$B29="NT"),$B29="Nt"),$B28=""),0,IF($C$10="min",(do_not_touch_this_sheet!$K29+do_not_touch_this_sheet!$L29+do_not_touch_this_sheet!$M29)*60,IF($C$10="hr",3600*(do_not_touch_this_sheet!$K29+do_not_touch_this_sheet!$L29+do_not_touch_this_sheet!$M29),IF($C$10="s",(do_not_touch_this_sheet!$K29+do_not_touch_this_sheet!$L29+do_not_touch_this_sheet!$M29*0))))) -> 0.4024731656 | D29: 1
A30: 14 | B30: N | C30: =IF(OR(OR(OR(OR(OR(OR($B30="",$B30="P"),$B30="Pc"),$B30="Ac"),$B30="NT"),$B30="Nt"),$B29=""),0,IF($C$10="min",(do_not_touch_this_sheet!$K30+do_not_touch_this_sheet!$L30+do_not_touch_this_sheet!$M30)*60,IF($C$10="hr",3600*(do_not_touch_this_sheet!$K30+do_not_touch_this_sheet!$L30+do_not_touch_this_sheet!$M30),IF($C$10="s",(do_not_touch_this_sheet!$K30+do_not_touch_this_sheet!$L30+do_not_touch_this_sheet!$M30*0))))) -> 2.148979678 | D30: 1
A31: 15 | B31: C | C31: =IF(OR(OR(OR(OR(OR(OR($B31="",$B31="P"),$B31="Pc"),$B31="Ac"),$B31="NT"),$B31="Nt"),$B30=""),0,IF($C$10="min",(do_not_touch_this_sheet!$K31+do_not_touch_this_sheet!$L31+do_not_touch_this_sheet!$M31)*60,IF($C$10="hr",3600*(do_not_touch_this_sheet!$K31+do_not_touch_this_sheet!$L31+do_not_touch_this_sheet!$M31),IF($C$10="s",(do_not_touch_this_sheet!$K31+do_not_touch_this_sheet!$L31+do_not_touch_this_sheet!$M31*0))))) -> 8.498615743 | D31: 1
A32: 16 | B32: I | C32: =IF(OR(OR(OR(OR(OR(OR($B32="",$B32="P"),$B32="Pc"),$B32="Ac"),$B32="NT"),$B32="Nt"),$B31=""),0,IF($C$10="min",(do_not_touch_this_sheet!$K32+do_not_touch_this_sheet!$L32+do_not_touch_this_sheet!$M32)*60,IF($C$10="hr",3600*(do_not_touch_this_sheet!$K32+do_not_touch_this_sheet!$L32+do_not_touch_this_sheet!$M32),IF($C$10="s",(do_not_touch_this_sheet!$K32+do_not_touch_this_sheet!$L32+do_not_touch_this_sheet!$M32*0))))) -> 0.6446859323 | D32: 1
A33: 17 | B33: S | C33: =IF(OR(OR(OR(OR(OR(OR($B33="",$B33="P"),$B33="Pc"),$B33="Ac"),$B33="NT"),$B33="Nt"),$B32=""),0,IF($C$10="min",(do_not_touch_this_sheet!$K33+do_not_touch_this_sheet!$L33+do_not_touch_this_sheet!$M33)*60,IF($C$10="hr",3600*(do_not_touch_this_sheet!$K33+do_not_touch_this_sheet!$L33+do_not_touch_this_sheet!$M33),IF($C$10="s",(do_not_touch_this_sheet!$K33+do_not_touch_this_sheet!$L33+do_not_touch_this_sheet!$M33*0))))) -> 1.346939824 | D33: 1
A34: 18 | B34: G | C34: =IF(OR(OR(OR(OR(OR(OR($B34="",$B34="P"),$B34="Pc"),$B34="Ac"),$B34="NT"),$B34="Nt"),$B33=""),0,IF($C$10="min",(do_not_touch_this_sheet!$K34+do_not_touch_this_sheet!$L34+do_not_touch_this_sheet!$M34)*60,IF($C$10="hr",3600*(do_not_touch_this_sheet!$K34+do_not_touch_this_sheet!$L34+do_not_touch_this_sheet!$M34),IF($C$10="s",(do_not_touch_this_sheet!$K34+do_not_touch_this_sheet!$L34+do_not_touch_this_sheet!$M34*0))))) -> 3.598736498 | D34: 1
A35: 19 | B35: P | C35: =IF(OR(OR(OR(OR(OR(OR($B35="",$B35="P"),$B35="Pc"),$B35="Ac"),$B35="NT"),$B35="Nt"),$B34=""),0,IF($C$10="min",(do_not_touch_this_sheet!$K35+do_not_touch_this_sheet!$L35+do_not_touch_this_sheet!$M35)*60,IF($C$10="hr",3600*(do_not_touch_this_sheet!$K35+do_not_touch_this_sheet!$L35+do_not_touch_this_sheet!$M35),IF($C$10="s",(do_not_touch_this_sheet!$K35+do_not_touch_this_sheet!$L35+do_not_touch_this_sheet!$M35*0))))) -> 0 | D35: 0
A36: 20 | B36: V | C36: =IF(OR(OR(OR(OR(OR(OR($B36="",$B36="P"),$B36="Pc"),$B36="Ac"),$B36="NT"),$B36="Nt"),$B35=""),0,IF($C$10="min",(do_not_touch_this_sheet!$K36+do_not_touch_this_sheet!$L36+do_not_touch_this_sheet!$M36)*60,IF($C$10="hr",3600*(do_not_touch_this_sheet!$K36+do_not_touch_this_sheet!$L36+do_not_touch_this_sheet!$M36),IF($C$10="s",(do_not_touch_this_sheet!$K36+do_not_touch_this_sheet!$L36+do_not_touch_this_sheet!$M36*0))))) -> 0.008899148967 | D36: 0.6562696778
B37: CT | C37: =IF(OR(OR(OR(OR(OR(OR($B37="",$B37="P"),$B37="Pc"),$B37="Ac"),$B37="NT"),$B37="Nt"),$B36=""),0,IF($C$10="min",(do_not_touch_this_sheet!$K37+do_not_touch_this_sheet!$L37+do_not_touch_this_sheet!$M37)*60,IF($C$10="hr",3600*(do_not_touch_this_sheet!$K37+do_not_touch_this_sheet!$L37+do_not_touch_this_sheet!$M37),IF($C$10="s",(do_not_touch_this_sheet!$K37+do_not_touch_this_sheet!$L37+do_not_touch_this_sheet!$M37*0))))) -> 0 | D37: 0

Sheet graph
B2: timescale 0 to | C2: 120 | D2: s
B3: graph time step | C3: =calculate!B11 -> 0.1 | D3: s
B5: Time | C5: noD
B6: 0 | C6: 0
B7: 0.1 | C7: 5.817210808
B8: 0.2 | C8: 8.338643136
B9: 0.3 | C9: 9.715511821
B10: 0.4 | C10: 10.62375715
B11: 0.5 | C11: 11.29675434
B12: 0.6 | C12: 11.82801345
B13: 0.7 | C13: 12.2626226
B14: 0.8 | C14: 12.62638794
B15: 0.9 | C15: 12.93599449
B16: 1 | C16: 13.20305702
B17: 1.1 | C17: 13.43601938
B18: 1.2 | C18: 13.64119171
B19: 1.3 | C19: 13.82338491
B20: 1.4 | C20: 13.98632771
B21: 1.5 | C21: 14.13295286
B22: 1.6 | C22: 14.26559881
B23: 1.7 | C23: 14.38615437
B24: 1.8 | C24: 14.49616389
B25: 1.9 | C25: 14.59690457
B26: 2 | C26: 14.68944407
B27: 2.1 | C27: 14.77468363
B28: 2.2 | C28: 14.85339099
B29: 2.3 | C29: 14.92622553
B30: 2.4 | C30: 14.99375784
B31: 2.5 | C31: 15.05648504
B32: 2.6 | C32: 15.11484289
B33: 2.7 | C33: 15.16921556
B34: 2.8 | C34: 15.2199434
B35: 2.9 | C35: 15.26732936
B36: 3 | C36: 15.31164424
B37: 3.1 | C37: 15.35313104
B38: 3.2 | C38: 15.39200859
B39: 3.3 | C39: 15.42847459
B40: 3.4 | C40: 15.46270818
B41: 3.5 | C41: 15.49487216
B42: 3.6 | C42: 15.52511484
B43: 3.7 | C43: 15.55357167
B44: 3.8 | C44: 15.58036661
B45: 3.9 | C45: 15.60561335
B46: 4 | C46: 15.62941637
B47: 4.1 | C47: 15.65187182
B48: 4.2 | C48: 15.67306839
B49: 4.3 | C49: 15.69308794
B50: 4.4 | C50: 15.71200621
B51: 4.5 | C51: 15.72989331
B52: 4.6 | C52: 15.74681426
B53: 4.7 | C53: 15.76282941
B54: 4.8 | C54: 15.77799483
B55: 4.9 | C55: 15.7923627
B56: 5 | C56: 15.80598158
B57: 5.1 | C57: 15.81889673
B58: 5.2 | C58: 15.83115035
B59: 5.3 | C59: 15.84278186
B60: 5.4 | C60: 15.85382805
B61: 5.5 | C61: 15.86432332
B62: 5.6 | C62: 15.87429984
B63: 5.7 | C63: 15.88378772
B64: 5.8 | C64: 15.89281516
B65: 5.9 | C65: 15.90140857
B66: 6 | C66: 15.90959271
B67: 6.1 | C67: 15.9173908
B68: 6.2 | C68: 15.92482463
B69: 6.3 | C69: 15.93191466
B70: 6.4 | C70: 15.93868008
B71: 6.5 | C71: 15.94513896
B72: 6.6 | C72: 15.95130823
B73: 6.7 | C73: 15.95720386
B74: 6.8 | C74: 15.96284083
B75: 6.9 | C75: 15.96823325
B76: 7 | C76: 15.9733944
B77: 7.1 | C77: 15.97833679
B78: 7.2 | C78: 15.98307217
B79: 7.3 | C79: 15.98761165
B80: 7.4 | C80: 15.99196567
B81: 7.5 | C81: 15.99614408
B82: 7.6 | C82: 16.00015618
B83: 7.7 | C83: 16.00401071
B84: 7.8 | C84: 16.00771594
B85: 7.9 | C85: 16.01127967
B86: 8 | C86: 16.01470925
B87: 8.1 | C87: 16.01801163
B88: 8.2 | C88: 16.02119338
B89: 8.3 | C89: 16.02426068
B90: 8.4 | C90: 16.0272194
B91: 8.5 | C91: 16.03007505
B92: 8.6 | C92: 16.03283288
B93: 8.7 | C93: 16.03549782
B94: 8.8 | C94: 16.03807455
B95: 8.9 | C95: 16.04056749
B96: 9 | C96: 16.04298082
B97: 9.1 | C97: 16.0453185
B98: 9.2 | C98: 16.04758428
B99: 9.3 | C99: 16.0497817
B100: 9.4 | C100: 16.05191413
B101: 9.5 | C101: 16.05398473
B102: 9.6 | C102: 16.05599652
B103: 9.7 | C103: 16.05795237
B104: 9.8 | C104: 16.05985496
B105: 9.9 | C105: 16.06170688
B106: 10 | C106: 16.06351053
B107: 10.1 | C107: 16.06526824
B108: 10.2 | C108: 16.06698219
B109: 10.3 | C109: 16.06865444
B110: 10.4 | C110: 16.07028697
B111: 10.5 | C111: 16.07188165
B112: 10.6 | C112: 16.07344024
B113: 10.7 | C113: 16.07496443
B114: 10.8 | C114: 16.07645581
B115: 10.9 | C115: 16.07791591
B116: 11 | C116: 16.07934616
B117: 11.1 | C117: 16.08074793
B118: 11.2 | C118: 16.08212252
B119: 11.3 | C119: 16.08347117
B120: 11.4 | C120: 16.08479506
B121: 11.5 | C121: 16.08609529
B122: 11.6 | C122: 16.08737294
B123: 11.7 | C123: 16.088629
B124: 11.8 | C124: 16.08986445
B125: 11.9 | C125: 16.0910802
B126: 12 | C126: 16.09227712
B127: 12.1 | C127: 16.09345603
B128: 12.2 | C128: 16.09461772
B129: 12.3 | C129: 16.09576294
B130: 12.4 | C130: 16.09689241
B131: 12.5 | C131: 16.09800681
B132: 12.6 | C132: 16.09910678
B133: 12.7 | C133: 16.10019295
B134: 12.8 | C134: 16.10126589
B135: 12.9 | C135: 16.10232618
B136: 13 | C136: 16.10337434
B137: 13.1 | C137: 16.10441088
B138: 13.2 | C138: 16.10543629
B139: 13.3 | C139: 16.10645103
B140: 13.4 | C140: 16.10745554
B141: 13.5 | C141: 16.10845024
B142: 13.6 | C142: 16.10943554
B143: 13.7 | C143: 16.11041181
B144: 13.8 | C144: 16.11137943
B145: 13.9 | C145: 16.11233874
B146: 14 | C146: 16.11329007
B147: 14.1 | C147: 16.11423374
B148: 14.2 | C148: 16.11517005
B149: 14.3 | C149: 16.1160993
B150: 14.4 | C150: 16.11702175
B151: 14.5 | C151: 16.11793768
B152: 14.6 | C152: 16.11884734
B153: 14.7 | C153: 16.11975096
B154: 14.8 | C154: 16.12064877
B155: 14.9 | C155: 16.12154101
B156: 15 | C156: 16.12242787
B157: 15.1 | C157: 16.12330955
B158: 15.2 | C158: 16.12418625
B159: 15.3 | C159: 16.12505816
B160: 15.4 | C160: 16.12592544
B161: 15.5 | C161: 16.12678827
B162: 15.6 | C162: 16.1276468
B163: 15.7 | C163: 16.12850119
B164: 15.8 | C164: 16.12935158
B165: 15.9 | C165: 16.13019812
B166: 16 | C166: 16.13104094
B167: 16.1 | C167: 16.13188016
B168: 16.2 | C168: 16.13271592
B169: 16.3 | C169: 16.13354832
B170: 16.4 | C170: 16.13437748
B171: 16.5 | C171: 16.13520351
B172: 16.6 | C172: 16.13602651
B173: 16.7 | C173: 16.13684658
B174: 16.8 | C174: 16.13766381
B175: 16.9 | C175: 16.13847829
B176: 17 | C176: 16.13929012
B177: 17.1 | C177: 16.14009936
B178: 17.2 | C178: 16.14090611
B179: 17.3 | C179: 16.14171044
B180: 17.4 | C180: 16.14251242
B181: 17.5 | C181: 16.14331212
B182: 17.6 | C182: 16.1441096
B183: 17.7 | C183: 16.14490494
B184: 17.8 | C184: 16.14569819
B185: 17.9 | C185: 16.14648941
B186: 18 | C186: 16.14727866
B187: 18.1 | C187: 16.14806599
B188: 18.2 | C188: 16.14885145
B189: 18.3 | C189: 16.14963509
B190: 18.4 | C190: 16.15041697
B191: 18.5 | C191: 16.15119712
B192: 18.6 | C192: 16.15197559
B193: 18.7 | C193: 16.15275242
B194: 18.8 | C194: 16.15352766
B195: 18.9 | C195: 16.15430133
B196: 19 | C196: 16.15507348
B197: 19.1 | C197: 16.15584414
B198: 19.2 | C198: 16.15661335
B199: 19.3 | C199: 16.15738113
B200: 19.4 | C200: 16.15814753
B201: 19.5 | C201: 16.15891257
B202: 19.6 | C202: 16.15967627
... 1004 more rows

Sheet do_not_touch_this_sheet
F1: FACTORS | H1: 10/18/93
D2: MILNE | E2: ACID | G2: MILNE | H2: BASE | J2: pK(D,20c) = | K2: 15.05 | L2: ka (/s) = | M2: =IF(calculate!$B$12="poly",$W3,IF($B$5="oligo",$X3,"WRONG")) -> 0.6947823058 | P2: 1/(dT*R)= | Q2: =(1/(calculate!$B7+273)-1/293)/$AA$5 -> 9.921440361e-05 | T2: (cal/mol) | W2: POLY | X2: OLIGO | AC2: Ea,asp = | AD2: 1000
D3: LAMBDA | E3: RHO | G3: LAMBDA | H3: RHO | J3: pKc(Asp)= | K3: =LOG(10^(-1*4.48)*EXP(-1*$AD$2*((1/(calculate!B7+273.15)-1/278)/$AA$5)))*-1 -> 4.482411269 | L3: kb (/s) = | M3: =IF(calculate!$B$12="poly",$W4,IF($B$5="oligo",$X4,"WRONG")) -> 187003075.7 | P3: Fta = | Q3: =EXP(-1*$T$3*$Q$2) -> 0.249324093 | S3: Ea,A = | T3: 14000 | V3: ka (/s) = | W3: =(10^(1.62))/60 -> 0.6947823058 | X3: =W3*2.34 -> 1.625790596 | Z3: [D+] = | AA3: =10^(-1*calculate!B8) -> 3.16227766e-08 | AC3: Ea,glu = | AD3: 1083
J4: pKc(Glu)= | K4: =LOG(10^(-1*4.93)*EXP(-1*$AD$3*((1/(calculate!B7+273.15)-1/278)/$AA$5)))*-1 -> 4.932611404 | L4: kw (/s) = | M4: =IF(calculate!$B$12="poly",$W5,IF($B$5="oligo",$X5,"WRONG")) -> 0.0005270462767 | P4: Ftb = | Q4: =EXP(-1*$T$4*$Q$2) -> 0.1851396523 | S4: Ea,B = | T4: 17000 | V4: kb (/s) = | W4: =(10^(10.05))/60 -> 187003075.7 | X4: =W4*1.35 -> 252454152.2 | Z4: [OD-] = | AA4: =10^(calculate!$B$8-$K$2) -> 2.818382931e-08 | AC4: Ea,his = | AD4: 7500
A5: ALANINE | C5: A | D5: 0 | E5: 0 | G5: 0 | H5: 0 | J5: pKc(His)= | K5: =LOG(10^(-1*7.42)*EXP(-1*$AD$4*((1/(calculate!B7+273.15)-1/278)/$AA$5)))*-1 -> 7.438084519 | P5: Ftw = | Q5: =EXP(-1*$T$5*$Q$2) -> 0.1518178748 | S5: Ea,W = | T5: 19000 | V5: kw (/s) = | W5: =(10^(-1.5))/60 -> 0.0005270462767 | X5: =W5*1.585 -> 0.0008353683486 | Z5: R = | AA5: 1.987
A6: CYSTEIN | C6: C | D6: -0.54 | E6: -0.46 | G6: 0.62 | H6: 0.55
A7: CYSTINE | C7: C2 | D7: -0.74 | E7: -0.58 | G7: 0.55 | H7: 0.46
A8: ASPARTIC ACID | C8: D | D8: =LOG(10^(-0.9-calculate!$B$8)/(10^(-$K$3)+10^(-calculate!$B$8))+10^(0.9-$K$3)/(10^(-$K3)+10^(-calculate!$B$8))) -> 0.8995897528 | E8: =LOG(10^(-0.12-calculate!$B$8)/(10^(-$K$3)+10^(-calculate!$B$8))+10^(0.58-$K$3)/(10^(-$K$3)+10^(-calculate!$B$8))) -> 0.5796663488 | G8: =LOG(10^(0.69-calculate!$B$8)/(10^(-$K$3)+10^(-calculate!$B$8))+10^(-0.3-$K$3)/(10^(-$K$3)+10^(-calculate!$B$8))) -> -0.2963602244 | H8: =LOG(10^(0.6-calculate!$B$8)/(10^(-$K$3)+10^(-calculate!$B$8))+10^(-0.18-$K$3)/(10^(-$K$3)+10^(-calculate!$B$8))) -> -0.1779110819 | K8: peptide length | L8: =LEN(calculate!B6) -> 20
A9: ASP COOH | C9: D+ | D9: -0.9 | E9: -0.12 | G9: 0.69 | H9: 0.6 | K9: supporting cell | L9: A18:A36 | M9: K16:S37
A10: GLUTAMIC ACID | C10: E | D10: =LOG(10^(-0.6-calculate!$B$8)/(10^(-$K$4)+10^(-calculate!$B$8))+10^(-0.9-$K$4)/(10^(-$K$4)+10^(-calculate!$B$8))) -> -0.8988343292 | E10: =LOG(10^(-0.27-calculate!$B$8)/(10^(-$K$4)+10^(-calculate!$B$8))+10^(0.31-$K$4)/(10^(-$K$4)+10^(-calculate!$B$8))) -> 0.3091348218 | G10: =LOG(10^(0.24-calculate!$B$8)/(10^(-$K$4)+10^(-calculate!$B$8))+10^(-0.51-$K$4)/(10^(-$K$4)+10^(-calculate!$B$8))) -> -0.5046112641 | H10: =LOG(10^(0.39-calculate!$B$8)/(10^(-$K$4)+10^(-calculate!$B$8))+10^(-0.15-$K$4)/(10^(-$K$4)+10^(-calculate!$B$8))) -> -0.1471158855 | L10: B17:B36 | M10: D16:D37
A11: GLU COOH | C11: E+ | D11: -0.6 | E11: -0.27 | G11: 0.24 | H11: 0.39 | L11: C16:C37
A12: PHENYLALANINE | C12: F | D12: -0.52 | E12: -0.43 | G12: -0.2358594641 | H12: 0.06313158663 | K12: Fa*ka*D | L12: Fb*kb*OD | M12: Fb*kw | O12: SLOWING | P12: Kop | Q12: delta G | R12: Fa | S12: Fb
A13: GLYCINE | C13: G | D13: -0.22 | E13: 0.2181760471 | G13: 0.2672515693 | H13: 0.17 | K13: *Fta(T) | L13: *Ftb(T) | M13: *Ftw(T) | N13: SF | O13: FACTOR | Q13: (kcal)
A14: HIS | C14: H | D14: =LOG(10^(-0.8-calculate!$B$8)/(10^(-$K$5)+10^(-calculate!$B$8))+10^(0-$K$5)/(10^(-$K$5)+10^(-calculate!$B$8))) -> -0.2152496618 | E14: =LOG(10^(-0.51-calculate!$B$8)/(10^(-$K$5)+10^(-calculate!$B$8))+10^(0-$K$5)/(10^(-$K$5)+10^(-calculate!$B$8))) -> -0.1680660716 | G14: =LOG(10^(0.8-calculate!$B$8)/(10^(-$K$5)+10^(-calculate!$B$8))+10^(-0.1-$K$5)/(10^(-$K$5)+10^(-calculate!$B$8))) -> 0.5257846754 | H14: =LOG(10^(0.83-calculate!$B$8)/(10^(-$K$5)+10^(-calculate!$B$8))+10^(0.14-$K$5)/(10^(-$K$5)+10^(-calculate!$B$8))) -> 0.588738192 | O14: Log(kc/kex)
A15: ISOLEUCINE | C15: I | D15: -0.91 | E15: -0.59 | G15: -0.73 | H15: -0.23
A16: LYSINE | C16: K | D16: -0.56 | E16: -0.29 | G16: -0.04 | H16: 0.12 | K16: =IFERROR(IF(calculate!$B15=" ---","",$M$2*$AA$3*$Q$3*$R16),0) -> 0 | L16: =IFERROR(IF(calculate!$B15=" ---","",$M$3*$AA$4*$Q$4*$S16),0) -> 0 | M16: =IFERROR(IF(calculate!$B15=" ---","",$M$4*$Q$5*$S16),0) -> 0 | N16: =KDYŽ(NEBO(NEBO(calculate!$C$10="hr",calculate!$C$10="s"),calculate!$C$10="min"),KDYŽ(calculate!$C11=""," ---",(calculate!$D11/calculate!$C11))," ?") ->  | O16: =KDYŽ(NEBO(NEBO(calculate!$C$10="hr",calculate!$C$10="s"),calculate!$C$10="min"),KDYŽ(calculate!C11=""," ---",LOGZ(calculate!$D11/calculate!$C11))," ?") ->  | P16: =KDYŽ(NEBO(NEBO(calculate!$C$10="hr",calculate!$C$10="s"),calculate!$C$10="min"),KDYŽ(calculate!$C11="","",calculate!$C11/(calculate!$D11-calculate!$C11))," ?") ->  | Q16: =KDYŽ(calculate!$G11="","",KDYŽ(calculate!$G11=" ?"," ?",-1*$AA$5*calculate!$B$3*LN(calculate!$G11)/1000)) ->  | R16: =IF(OR(calculate!$B16="P",calculate!$B16="",calculate!$B16="AC",calculate!$B16="NT",calculate!$B16="Pc",calculate!$B16="CT",calculate!$B15="NT")," ---",(IF(AND(OR(calculate!$B14="NT",calculate!$B14=""),calculate!$B17="CT",NOT(calculate!$B15="Ac"),NOT(calculate!$B16="NMe")),10^(VLOOKUP(calculate!$B16,$C$5:$H$32,2,FALSE)+VLOOKUP(calculate!$B15,$C$5:$H$32,3,FALSE)+$E$29+$D$30),(IF(AND(OR(calculate!$B14="NT",calculate!$B14=""),NOT(calculate!$B15="Ac")),10^(VLOOKUP(calculate!$B16,$C$5:$H$32,2,FALSE)+VLOOKUP(calculate!$B15,$C$5:$H$32,3,FALSE)+$E$29),(IF(AND(calculate!$B17="CT",NOT(calculate!$B16="NMe")),10^(VLOOKUP(calculate!$B16,$C$5:$H$32,2,FALSE)+VLOOKUP(calculate!$B15,$C$5:$H$32,3,FALSE)+$D$30),10^(VLOOKUP(calculate!$B16,$C$5:$H$32,2,FALSE)+VLOOKUP(calculate!$B15,$C$5:$H$32,3,FALSE))))))))) -> --- | S16: =IF(OR(calculate!$B16="P",calculate!$B16="",calculate!$B16="AC",calculate!$B16="NT",calculate!$B16="Pc",calculate!$B16="CT",calculate!$B15="NT")," ---",(IF(AND(OR(calculate!$B14="NT",calculate!$B14=""),calculate!$B17="CT",NOT(calculate!$B15="Ac"),NOT(calculate!$B16="NMe")),10^(VLOOKUP(calculate!$B16,$C$5:$H$32,5)+VLOOKUP(calculate!$B15,$C$5:$H$32,6)+$H$29+$G$30),(IF(AND(OR(calculate!$B14="NT",calculate!$B14=""),NOT(calculate!$B15="Ac")),10^(VLOOKUP(calculate!$B16,$C$5:$H$32,5)+VLOOKUP(calculate!$B15,$C$5:$H$32,6)+$H$29),(IF(AND(calculate!$B17="CT",NOT(calculate!$B16="NMe")),10^(VLOOKUP(calculate!$B16,$C$5:$H$32,5)+VLOOKUP(calculate!$B15,$C$5:$H$32,6)+$G$30),10^(VLOOKUP(calculate!$B16,$C$5:$H$32,5)+VLOOKUP(calculate!$B15,$C$5:$H$32,6))))))))) -> ---
A17: LEUCINE | C17: L | D17: -0.57 | E17: -0.13 | G17: -0.5762527277 | H17: -0.21 | K17: =IFERROR(IF(calculate!$B16=" ---","",$M$2*$AA$3*$Q$3*$R17),0) -> 0 | L17: =IFERROR(IF(calculate!$B16=" ---","",$M$3*$AA$4*$Q$4*$S17),0) -> 0 | M17: =IFERROR(IF(calculate!$B16=" ---","",$M$4*$Q$5*$S17),0) -> 0 | N17: =KDYŽ(NEBO(NEBO(calculate!$C$10="hr",calculate!$C$10="s"),calculate!$C$10="min"),KDYŽ(calculate!$C12=""," ---",(calculate!$D12/calculate!$C12))," ?") ->  | O17: =KDYŽ(NEBO(NEBO(calculate!$C$10="hr",calculate!$C$10="s"),calculate!$C$10="min"),KDYŽ(calculate!C12=""," ---",LOGZ(calculate!$D12/calculate!$C12))," ?") ->  | P17: =KDYŽ(NEBO(NEBO(calculate!$C$10="hr",calculate!$C$10="s"),calculate!$C$10="min"),KDYŽ(calculate!$C12="","",calculate!$C12/(calculate!$D12-calculate!$C12))," ?") ->  | Q17: =KDYŽ(calculate!$G12="","",KDYŽ(calculate!$G12=" ?"," ?",-1*$AA$5*calculate!$B$3*LN(calculate!$G12)/1000)) ->  | R17: =IF(OR(calculate!$B17="P",calculate!$B17="",calculate!$B17="AC",calculate!$B17="NT",calculate!$B17="Pc",calculate!$B17="CT",calculate!$B16="NT")," ---",(IF(AND(OR(calculate!$B15="NT",calculate!$B15=""),calculate!$B18="CT",NOT(calculate!$B16="Ac"),NOT(calculate!$B17="NMe")),10^(VLOOKUP(calculate!$B17,$C$5:$H$32,2,FALSE)+VLOOKUP(calculate!$B16,$C$5:$H$32,3,FALSE)+$E$29+$D$30),(IF(AND(OR(calculate!$B15="NT",calculate!$B15=""),NOT(calculate!$B16="Ac")),10^(VLOOKUP(calculate!$B17,$C$5:$H$32,2,FALSE)+VLOOKUP(calculate!$B16,$C$5:$H$32,3,FALSE)+$E$29),(IF(AND(calculate!$B18="CT",NOT(calculate!$B17="NMe")),10^(VLOOKUP(calculate!$B17,$C$5:$H$32,2,FALSE)+VLOOKUP(calculate!$B16,$C$5:$H$32,3,FALSE)+$D$30),10^(VLOOKUP(calculate!$B17,$C$5:$H$32,2,FALSE)+VLOOKUP(calculate!$B16,$C$5:$H$32,3,FALSE))))))))) -> --- | S17: =IF(OR(calculate!$B17="P",calculate!$B17="",calculate!$B17="AC",calculate!$B17="NT",calculate!$B17="Pc",calculate!$B17="CT",calculate!$B16="NT")," ---",(IF(AND(OR(calculate!$B15="NT",calculate!$B15=""),calculate!$B18="CT",NOT(calculate!$B16="Ac"),NOT(calculate!$B17="NMe")),10^(VLOOKUP(calculate!$B17,$C$5:$H$32,5)+VLOOKUP(calculate!$B16,$C$5:$H$32,6)+$H$29+$G$30),(IF(AND(OR(calculate!$B15="NT",calculate!$B15=""),NOT(calculate!$B16="Ac")),10^(VLOOKUP(calculate!$B17,$C$5:$H$32,5)+VLOOKUP(calculate!$B16,$C$5:$H$32,6)+$H$29),(IF(AND(calculate!$B18="CT",NOT(calculate!$B17="NMe")),10^(VLOOKUP(calculate!$B17,$C$5:$H$32,5)+VLOOKUP(calculate!$B16,$C$5:$H$32,6)+$G$30),10^(VLOOKUP(calculate!$B17,$C$5:$H$32,5)+VLOOKUP(calculate!$B16,$C$5:$H$32,6))))))))) -> ---
A18: METHIONINE | C18: M | D18: -0.64 | E18: -0.28 | G18: -0.008954842653 | H18: 0.11 | K18: =IFERROR(IF(calculate!$B17=" ---","",$M$2*$AA$3*$Q$3*$R18),0) -> 8.382302618e-11 | L18: =IFERROR(IF(calculate!$B17=" ---","",$M$3*$AA$4*$Q$4*$S18),0) -> 175.8461518 | M18: =IFERROR(IF(calculate!$B17=" ---","",$M$4*$Q$5*$S18),0) -> 0.01441970358 | N18: =KDYŽ(NEBO(NEBO(calculate!$C$10="hr",calculate!$C$10="s"),calculate!$C$10="min"),KDYŽ(calculate!$C13=""," ---",(calculate!$D13/calculate!$C13))," ?") ->  | O18: =KDYŽ(NEBO(NEBO(calculate!$C$10="hr",calculate!$C$10="s"),calculate!$C$10="min"),KDYŽ(calculate!C13=""," ---",LOGZ(calculate!$D13/calculate!$C13))," ?") ->  | P18: =KDYŽ(NEBO(NEBO(calculate!$C$10="hr",calculate!$C$10="s"),calculate!$C$10="min"),KDYŽ(calculate!$C13="","",calculate!$C13/(calculate!$D13-calculate!$C13))," ?") ->  | Q18: =KDYŽ(calculate!$G13="","",KDYŽ(calculate!$G13=" ?"," ?",-1*$AA$5*calculate!$B$3*LN(calculate!$G13)/1000)) ->  | R18: =IF(OR(calculate!$B18="P",calculate!$B18="",calculate!$B18="AC",calculate!$B18="NT",calculate!$B18="Pc",calculate!$B18="CT",calculate!$B17="NT")," ---",(IF(AND(OR(calculate!$B16="NT",calculate!$B16=""),calculate!$B19="CT",NOT(calculate!$B17="Ac"),NOT(calculate!$B18="NMe")),10^(VLOOKUP(calculate!$B18,$C$5:$H$32,2,FALSE)+VLOOKUP(calculate!$B17,$C$5:$H$32,3,FALSE)+$E$29+$D$30),(IF(AND(OR(calculate!$B16="NT",calculate!$B16=""),NOT(calculate!$B17="Ac")),10^(VLOOKUP(calculate!$B18,$C$5:$H$32,2,FALSE)+VLOOKUP(calculate!$B17,$C$5:$H$32,3,FALSE)+$E$29),(IF(AND(calculate!$B19="CT",NOT(calculate!$B18="NMe")),10^(VLOOKUP(calculate!$B18,$C$5:$H$32,2,FALSE)+VLOOKUP(calculate!$B17,$C$5:$H$32,3,FALSE)+$D$30),10^(VLOOKUP(calculate!$B18,$C$5:$H$32,2,FALSE)+VLOOKUP(calculate!$B17,$C$5:$H$32,3,FALSE))))))))) -> 0.01530207542 | S18: =IF(OR(calculate!$B18="P",calculate!$B18="",calculate!$B18="AC",calculate!$B18="NT",calculate!$B18="Pc",calculate!$B18="CT",calculate!$B17="NT")," ---",(IF(AND(OR(calculate!$B16="NT",calculate!$B16=""),calculate!$B19="CT",NOT(calculate!$B17="Ac"),NOT(calculate!$B18="NMe")),10^(VLOOKUP(calculate!$B18,$C$5:$H$32,5)+VLOOKUP(calculate!$B17,$C$5:$H$32,6)+$H$29+$G$30),(IF(AND(OR(calculate!$B16="NT",calculate!$B16=""),NOT(calculate!$B17="Ac")),10^(VLOOKUP(calculate!$B18,$C$5:$H$32,5)+VLOOKUP(calculate!$B17,$C$5:$H$32,6)+$H$29),(IF(AND(calculate!$B19="CT",NOT(calculate!$B18="NMe")),10^(VLOOKUP(calculate!$B18,$C$5:$H$32,5)+VLOOKUP(calculate!$B17,$C$5:$H$32,6)+$G$30),10^(VLOOKUP(calculate!$B18,$C$5:$H$32,5)+VLOOKUP(calculate!$B17,$C$5:$H$32,6))))))))) -> 180.212402
A19: ASPARAGINE | C19: N | D19: -0.58 | E19: -0.13 | G19: 0.49 | H19: 0.32 | K19: =IFERROR(IF(calculate!$B18=" ---","",$M$2*$AA$3*$Q$3*$R19),0) -> 2.266194933e-09 | L19: =IFERROR(IF(calculate!$B18=" ---","",$M$3*$AA$4*$Q$4*$S19),0) -> 12.70196936 | M19: =IFERROR(IF(calculate!$B18=" ---","",$M$4*$Q$5*$S19),0) -> 0.001041584539 | N19: =KDYŽ(NEBO(NEBO(calculate!$C$10="hr",calculate!$C$10="s"),calculate!$C$10="min"),KDYŽ(calculate!$C14=""," ---",(calculate!$D14/calculate!$C14))," ?") ->  | O19: =KDYŽ(NEBO(NEBO(calculate!$C$10="hr",calculate!$C$10="s"),calculate!$C$10="min"),KDYŽ(calculate!C14=""," ---",LOGZ(calculate!$D14/calculate!$C14))," ?") ->  | P19: =KDYŽ(NEBO(NEBO(calculate!$C$10="hr",calculate!$C$10="s"),calculate!$C$10="min"),KDYŽ(calculate!$C14="","",calculate!$C14/(calculate!$D14-calculate!$C14))," ?") ->  | Q19: =KDYŽ(calculate!$G14="","",KDYŽ(calculate!$G14=" ?"," ?",-1*$AA$5*calculate!$B$3*LN(calculate!$G14)/1000)) ->  | R19: =IF(OR(calculate!$B19="P",calculate!$B19="",calculate!$B19="AC",calculate!$B19="NT",calculate!$B19="Pc",calculate!$B19="CT",calculate!$B18="NT")," ---",(IF(AND(OR(calculate!$B17="NT",calculate!$B17=""),calculate!$B20="CT",NOT(calculate!$B18="Ac"),NOT(calculate!$B19="NMe")),10^(VLOOKUP(calculate!$B19,$C$5:$H$32,2,FALSE)+VLOOKUP(calculate!$B18,$C$5:$H$32,3,FALSE)+$E$29+$D$30),(IF(AND(OR(calculate!$B17="NT",calculate!$B17=""),NOT(calculate!$B18="Ac")),10^(VLOOKUP(calculate!$B19,$C$5:$H$32,2,FALSE)+VLOOKUP(calculate!$B18,$C$5:$H$32,3,FALSE)+$E$29),(IF(AND(calculate!$B20="CT",NOT(calculate!$B19="NMe")),10^(VLOOKUP(calculate!$B19,$C$5:$H$32,2,FALSE)+VLOOKUP(calculate!$B18,$C$5:$H$32,3,FALSE)+$D$30),10^(VLOOKUP(calculate!$B19,$C$5:$H$32,2,FALSE)+VLOOKUP(calculate!$B18,$C$5:$H$32,3,FALSE))))))))) -> 0.4136988053 | S19: =IF(OR(calculate!$B19="P",calculate!$B19="",calculate!$B19="AC",calculate!$B19="NT",calculate!$B19="Pc",calculate!$B19="CT",calculate!$B18="NT")," ---",(IF(AND(OR(calculate!$B17="NT",calculate!$B17=""),calculate!$B20="CT",NOT(calculate!$B18="Ac"),NOT(calculate!$B19="NMe")),10^(VLOOKUP(calculate!$B19,$C$5:$H$32,5)+VLOOKUP(calculate!$B18,$C$5:$H$32,6)+$H$29+$G$30),(IF(AND(OR(calculate!$B17="NT",calculate!$B17=""),NOT(calculate!$B18="Ac")),10^(VLOOKUP(calculate!$B19,$C$5:$H$32,5)+VLOOKUP(calculate!$B18,$C$5:$H$32,6)+$H$29),(IF(AND(calculate!$B20="CT",NOT(calculate!$B19="NMe")),10^(VLOOKUP(calculate!$B19,$C$5:$H$32,5)+VLOOKUP(calculate!$B18,$C$5:$H$32,6)+$G$30),10^(VLOOKUP(calculate!$B19,$C$5:$H$32,5)+VLOOKUP(calculate!$B18,$C$5:$H$32,6))))))))) -> 13.01735856
A20: PROLINE | C20: P | D20: 0 | E20: -0.194773472 | G20: 0 | H20: -0.24 | K20: =IFERROR(IF(calculate!$B19=" ---","",$M$2*$AA$3*$Q$3*$R20),0) -> 2.266194933e-09 | L20: =IFERROR(IF(calculate!$B19=" ---","",$M$3*$AA$4*$Q$4*$S20),0) -> 12.70196936 | M20: =IFERROR(IF(calculate!$B19=" ---","",$M$4*$Q$5*$S20),0) -> 0.001041584539 | N20: =KDYŽ(NEBO(NEBO(calculate!$C$10="hr",calculate!$C$10="s"),calculate!$C$10="min"),KDYŽ(calculate!$C15=""," ---",(calculate!$D15/calculate!$C15))," ?") ->  | O20: =KDYŽ(NEBO(NEBO(calculate!$C$10="hr",calculate!$C$10="s"),calculate!$C$10="min"),KDYŽ(calculate!C15=""," ---",LOGZ(calculate!$D15/calculate!$C15))," ?") ->  | P20: =KDYŽ(NEBO(NEBO(calculate!$C$10="hr",calculate!$C$10="s"),calculate!$C$10="min"),KDYŽ(calculate!$C15="","",calculate!$C15/(calculate!$D15-calculate!$C15))," ?") ->  | Q20: =KDYŽ(calculate!$G15="","",KDYŽ(calculate!$G15=" ?"," ?",-1*$AA$5*calculate!$B$3*LN(calculate!$G15)/1000)) ->  | R20: =IF(OR(calculate!$B20="P",calculate!$B20="",calculate!$B20="AC",calculate!$B20="NT",calculate!$B20="Pc",calculate!$B20="CT",calculate!$B19="NT")," ---",(IF(AND(OR(calculate!$B18="NT",calculate!$B18=""),calculate!$B21="CT",NOT(calculate!$B19="Ac"),NOT(calculate!$B20="NMe")),10^(VLOOKUP(calculate!$B20,$C$5:$H$32,2,FALSE)+VLOOKUP(calculate!$B19,$C$5:$H$32,3,FALSE)+$E$29+$D$30),(IF(AND(OR(calculate!$B18="NT",calculate!$B18=""),NOT(calculate!$B19="Ac")),10^(VLOOKUP(calculate!$B20,$C$5:$H$32,2,FALSE)+VLOOKUP(calculate!$B19,$C$5:$H$32,3,FALSE)+$E$29),(IF(AND(calculate!$B21="CT",NOT(calculate!$B20="NMe")),10^(VLOOKUP(calculate!$B20,$C$5:$H$32,2,FALSE)+VLOOKUP(calculate!$B19,$C$5:$H$32,3,FALSE)+$D$30),10^(VLOOKUP(calculate!$B20,$C$5:$H$32,2,FALSE)+VLOOKUP(calculate!$B19,$C$5:$H$32,3,FALSE))))))))) -> 0.4136988053 | S20: =IF(OR(calculate!$B20="P",calculate!$B20="",calculate!$B20="AC",calculate!$B20="NT",calculate!$B20="Pc",calculate!$B20="CT",calculate!$B19="NT")," ---",(IF(AND(OR(calculate!$B18="NT",calculate!$B18=""),calculate!$B21="CT",NOT(calculate!$B19="Ac"),NOT(calculate!$B20="NMe")),10^(VLOOKUP(calculate!$B20,$C$5:$H$32,5)+VLOOKUP(calculate!$B19,$C$5:$H$32,6)+$H$29+$G$30),(IF(AND(OR(calculate!$B18="NT",calculate!$B18=""),NOT(calculate!$B19="Ac")),10^(VLOOKUP(calculate!$B20,$C$5:$H$32,5)+VLOOKUP(calculate!$B19,$C$5:$H$32,6)+$H$29),(IF(AND(calculate!$B21="CT",NOT(calculate!$B20="NMe")),10^(VLOOKUP(calculate!$B20,$C$5:$H$32,5)+VLOOKUP(calculate!$B19,$C$5:$H$32,6)+$G$30),10^(VLOOKUP(calculate!$B20,$C$5:$H$32,5)+VLOOKUP(calculate!$B19,$C$5:$H$32,6))))))))) -> 13.01735856
A21: PRO cis | C21: Pc | D21: 0 | E21: -0.8544165343 | G21: 0 | H21: 0.6 | K21: =IFERROR(IF(calculate!$B20=" ---","",$M$2*$AA$3*$Q$3*$R21),0) -> 2.266194933e-09 | L21: =IFERROR(IF(calculate!$B20=" ---","",$M$3*$AA$4*$Q$4*$S21),0) -> 12.70196936 | M21: =IFERROR(IF(calculate!$B20=" ---","",$M$4*$Q$5*$S21),0) -> 0.001041584539 | N21: =KDYŽ(NEBO(NEBO(calculate!$C$10="hr",calculate!$C$10="s"),calculate!$C$10="min"),KDYŽ(calculate!$C16=""," ---",(calculate!$D16/calculate!$C16))," ?") ->  | O21: =KDYŽ(NEBO(NEBO(calculate!$C$10="hr",calculate!$C$10="s"),calculate!$C$10="min"),KDYŽ(calculate!C16=""," ---",LOGZ(calculate!$D16/calculate!$C16))," ?") ->  | P21: =KDYŽ(NEBO(NEBO(calculate!$C$10="hr",calculate!$C$10="s"),calculate!$C$10="min"),KDYŽ(calculate!$C16="","",calculate!$C16/(calculate!$D16-calculate!$C16))," ?") ->  | Q21: =KDYŽ(calculate!$G16="","",KDYŽ(calculate!$G16=" ?"," ?",-1*$AA$5*calculate!$B$3*LN(calculate!$G16)/1000)) ->  | R21: =IF(OR(calculate!$B21="P",calculate!$B21="",calculate!$B21="AC",calculate!$B21="NT",calculate!$B21="Pc",calculate!$B21="CT",calculate!$B20="NT")," ---",(IF(AND(OR(calculate!$B19="NT",calculate!$B19=""),calculate!$B22="CT",NOT(calculate!$B20="Ac"),NOT(calculate!$B21="NMe")),10^(VLOOKUP(calculate!$B21,$C$5:$H$32,2,FALSE)+VLOOKUP(calculate!$B20,$C$5:$H$32,3,FALSE)+$E$29+$D$30),(IF(AND(OR(calculate!$B19="NT",calculate!$B19=""),NOT(calculate!$B20="Ac")),10^(VLOOKUP(calculate!$B21,$C$5:$H$32,2,FALSE)+VLOOKUP(calculate!$B20,$C$5:$H$32,3,FALSE)+$E$29),(IF(AND(calculate!$B22="CT",NOT(calculate!$B21="NMe")),10^(VLOOKUP(calculate!$B21,$C$5:$H$32,2,FALSE)+VLOOKUP(calculate!$B20,$C$5:$H$32,3,FALSE)+$D$30),10^(VLOOKUP(calculate!$B21,$C$5:$H$32,2,FALSE)+VLOOKUP(calculate!$B20,$C$5:$H$32,3,FALSE))))))))) -> 0.4136988053 | S21: =IF(OR(calculate!$B21="P",calculate!$B21="",calculate!$B21="AC",calculate!$B21="NT",calculate!$B21="Pc",calculate!$B21="CT",calculate!$B20="NT")," ---",(IF(AND(OR(calculate!$B19="NT",calculate!$B19=""),calculate!$B22="CT",NOT(calculate!$B20="Ac"),NOT(calculate!$B21="NMe")),10^(VLOOKUP(calculate!$B21,$C$5:$H$32,5)+VLOOKUP(calculate!$B20,$C$5:$H$32,6)+$H$29+$G$30),(IF(AND(OR(calculate!$B19="NT",calculate!$B19=""),NOT(calculate!$B20="Ac")),10^(VLOOKUP(calculate!$B21,$C$5:$H$32,5)+VLOOKUP(calculate!$B20,$C$5:$H$32,6)+$H$29),(IF(AND(calculate!$B22="CT",NOT(calculate!$B21="NMe")),10^(VLOOKUP(calculate!$B21,$C$5:$H$32,5)+VLOOKUP(calculate!$B20,$C$5:$H$32,6)+$G$30),10^(VLOOKUP(calculate!$B21,$C$5:$H$32,5)+VLOOKUP(calculate!$B20,$C$5:$H$32,6))))))))) -> 13.01735856
A22: GLUTAMINE | C22: Q | D22: -0.47 | E22: -0.27 | G22: 0.06 | H22: 0.2 | K22: =IFERROR(IF(calculate!$B21=" ---","",$M$2*$AA$3*$Q$3*$R22),0) -> 2.266194933e-09 | L22: =IFERROR(IF(calculate!$B21=" ---","",$M$3*$AA$4*$Q$4*$S22),0) -> 12.70196936 | M22: =IFERROR(IF(calculate!$B21=" ---","",$M$4*$Q$5*$S22),0) -> 0.001041584539 | N22: =KDYŽ(NEBO(NEBO(calculate!$C$10="hr",calculate!$C$10="s"),calculate!$C$10="min"),KDYŽ(calculate!$C17=""," ---",(calculate!$D17/calculate!$C17))," ?") ->  | O22: =KDYŽ(NEBO(NEBO(calculate!$C$10="hr",calculate!$C$10="s"),calculate!$C$10="min"),KDYŽ(calculate!C17=""," ---",LOGZ(calculate!$D17/calculate!$C17))," ?") ->  | P22: =KDYŽ(NEBO(NEBO(calculate!$C$10="hr",calculate!$C$10="s"),calculate!$C$10="min"),KDYŽ(calculate!$C17="","",calculate!$C17/(calculate!$D17-calculate!$C17))," ?") ->  | Q22: =KDYŽ(calculate!$G17="","",KDYŽ(calculate!$G17=" ?"," ?",-1*$AA$5*calculate!$B$3*LN(calculate!$G17)/1000)) ->  | R22: =IF(OR(calculate!$B22="P",calculate!$B22="",calculate!$B22="AC",calculate!$B22="NT",calculate!$B22="Pc",calculate!$B22="CT",calculate!$B21="NT")," ---",(IF(AND(OR(calculate!$B20="NT",calculate!$B20=""),calculate!$B23="CT",NOT(calculate!$B21="Ac"),NOT(calculate!$B22="NMe")),10^(VLOOKUP(calculate!$B22,$C$5:$H$32,2,FALSE)+VLOOKUP(calculate!$B21,$C$5:$H$32,3,FALSE)+$E$29+$D$30),(IF(AND(OR(calculate!$B20="NT",calculate!$B20=""),NOT(calculate!$B21="Ac")),10^(VLOOKUP(calculate!$B22,$C$5:$H$32,2,FALSE)+VLOOKUP(calculate!$B21,$C$5:$H$32,3,FALSE)+$E$29),(IF(AND(calculate!$B23="CT",NOT(calculate!$B22="NMe")),10^(VLOOKUP(calculate!$B22,$C$5:$H$32,2,FALSE)+VLOOKUP(calculate!$B21,$C$5:$H$32,3,FALSE)+$D$30),10^(VLOOKUP(calculate!$B22,$C$5:$H$32,2,FALSE)+VLOOKUP(calculate!$B21,$C$5:$H$32,3,FALSE))))))))) -> 0.4136988053 | S22: =IF(OR(calculate!$B22="P",calculate!$B22="",calculate!$B22="AC",calculate!$B22="NT",calculate!$B22="Pc",calculate!$B22="CT",calculate!$B21="NT")," ---",(IF(AND(OR(calculate!$B20="NT",calculate!$B20=""),calculate!$B23="CT",NOT(calculate!$B21="Ac"),NOT(calculate!$B22="NMe")),10^(VLOOKUP(calculate!$B22,$C$5:$H$32,5)+VLOOKUP(calculate!$B21,$C$5:$H$32,6)+$H$29+$G$30),(IF(AND(OR(calculate!$B20="NT",calculate!$B20=""),NOT(calculate!$B21="Ac")),10^(VLOOKUP(calculate!$B22,$C$5:$H$32,5)+VLOOKUP(calculate!$B21,$C$5:$H$32,6)+$H$29),(IF(AND(calculate!$B23="CT",NOT(calculate!$B22="NMe")),10^(VLOOKUP(calculate!$B22,$C$5:$H$32,5)+VLOOKUP(calculate!$B21,$C$5:$H$32,6)+$G$30),10^(VLOOKUP(calculate!$B22,$C$5:$H$32,5)+VLOOKUP(calculate!$B21,$C$5:$H$32,6))))))))) -> 13.01735856
A23: ARGININE | C23: R | D23: -0.59 | E23: -0.32 | G23: 0.07671225428 | H23: 0.22 | K23: =IFERROR(IF(calculate!$B22=" ---","",$M$2*$AA$3*$Q$3*$R23),0) -> 2.266194933e-09 | L23: =IFERROR(IF(calculate!$B22=" ---","",$M$3*$AA$4*$Q$4*$S23),0) -> 12.70196936 | M23: =IFERROR(IF(calculate!$B22=" ---","",$M$4*$Q$5*$S23),0) -> 0.001041584539 | N23: =KDYŽ(NEBO(NEBO(calculate!$C$10="hr",calculate!$C$10="s"),calculate!$C$10="min"),KDYŽ(calculate!$C18=""," ---",(calculate!$D18/calculate!$C18))," ?") ->  | O23: =KDYŽ(NEBO(NEBO(calculate!$C$10="hr",calculate!$C$10="s"),calculate!$C$10="min"),KDYŽ(calculate!C18=""," ---",LOGZ(calculate!$D18/calculate!$C18))," ?") ->  | P23: =KDYŽ(NEBO(NEBO(calculate!$C$10="hr",calculate!$C$10="s"),calculate!$C$10="min"),KDYŽ(calculate!$C18="","",calculate!$C18/(calculate!$D18-calculate!$C18))," ?") ->  | Q23: =KDYŽ(calculate!$G18="","",KDYŽ(calculate!$G18=" ?"," ?",-1*$AA$5*calculate!$B$3*LN(calculate!$G18)/1000)) ->  | R23: =IF(OR(calculate!$B23="P",calculate!$B23="",calculate!$B23="AC",calculate!$B23="NT",calculate!$B23="Pc",calculate!$B23="CT",calculate!$B22="NT")," ---",(IF(AND(OR(calculate!$B21="NT",calculate!$B21=""),calculate!$B24="CT",NOT(calculate!$B22="Ac"),NOT(calculate!$B23="NMe")),10^(VLOOKUP(calculate!$B23,$C$5:$H$32,2,FALSE)+VLOOKUP(calculate!$B22,$C$5:$H$32,3,FALSE)+$E$29+$D$30),(IF(AND(OR(calculate!$B21="NT",calculate!$B21=""),NOT(calculate!$B22="Ac")),10^(VLOOKUP(calculate!$B23,$C$5:$H$32,2,FALSE)+VLOOKUP(calculate!$B22,$C$5:$H$32,3,FALSE)+$E$29),(IF(AND(calculate!$B24="CT",NOT(calculate!$B23="NMe")),10^(VLOOKUP(calculate!$B23,$C$5:$H$32,2,FALSE)+VLOOKUP(calculate!$B22,$C$5:$H$32,3,FALSE)+$D$30),10^(VLOOKUP(calculate!$B23,$C$5:$H$32,2,FALSE)+VLOOKUP(calculate!$B22,$C$5:$H$32,3,FALSE))))))))) -> 0.4136988053 | S23: =IF(OR(calculate!$B23="P",calculate!$B23="",calculate!$B23="AC",calculate!$B23="NT",calculate!$B23="Pc",calculate!$B23="CT",calculate!$B22="NT")," ---",(IF(AND(OR(calculate!$B21="NT",calculate!$B21=""),calculate!$B24="CT",NOT(calculate!$B22="Ac"),NOT(calculate!$B23="NMe")),10^(VLOOKUP(calculate!$B23,$C$5:$H$32,5)+VLOOKUP(calculate!$B22,$C$5:$H$32,6)+$H$29+$G$30),(IF(AND(OR(calculate!$B21="NT",calculate!$B21=""),NOT(calculate!$B22="Ac")),10^(VLOOKUP(calculate!$B23,$C$5:$H$32,5)+VLOOKUP(calculate!$B22,$C$5:$H$32,6)+$H$29),(IF(AND(calculate!$B24="CT",NOT(calculate!$B23="NMe")),10^(VLOOKUP(calculate!$B23,$C$5:$H$32,5)+VLOOKUP(calculate!$B22,$C$5:$H$32,6)+$G$30),10^(VLOOKUP(calculate!$B23,$C$5:$H$32,5)+VLOOKUP(calculate!$B22,$C$5:$H$32,6))))))))) -> 13.01735856
A24: SERINE | C24: S | D24: -0.4379922777 | E24: -0.3885189346 | G24: 0.37 | H24: 0.2995502856 | K24: =IFERROR(IF(calculate!$B23=" ---","",$M$2*$AA$3*$Q$3*$R24),0) -> 8.522105885e-10 | L24: =IFERROR(IF(calculate!$B23=" ---","",$M$3*$AA$4*$Q$4*$S24),0) -> 3.707930137 | M24: =IFERROR(IF(calculate!$B23=" ---","",$M$4*$Q$5*$S24),0) -> 0.0003040570004 | N24: =KDYŽ(NEBO(NEBO(calculate!$C$10="hr",calculate!$C$10="s"),calculate!$C$10="min"),KDYŽ(calculate!$C19=""," ---",(calculate!$D19/calculate!$C19))," ?") ->  | O24: =KDYŽ(NEBO(NEBO(calculate!$C$10="hr",calculate!$C$10="s"),calculate!$C$10="min"),KDYŽ(calculate!C19=""," ---",LOGZ(calculate!$D19/calculate!$C19))," ?") ->  | P24: =KDYŽ(NEBO(NEBO(calculate!$C$10="hr",calculate!$C$10="s"),calculate!$C$10="min"),KDYŽ(calculate!$C19="","",calculate!$C19/(calculate!$D19-calculate!$C19))," ?") ->  | Q24: =KDYŽ(calculate!$G19="","",KDYŽ(calculate!$G19=" ?"," ?",-1*$AA$5*calculate!$B$3*LN(calculate!$G19)/1000)) ->  | R24: =IF(OR(calculate!$B24="P",calculate!$B24="",calculate!$B24="AC",calculate!$B24="NT",calculate!$B24="Pc",calculate!$B24="CT",calculate!$B23="NT")," ---",(IF(AND(OR(calculate!$B22="NT",calculate!$B22=""),calculate!$B25="CT",NOT(calculate!$B23="Ac"),NOT(calculate!$B24="NMe")),10^(VLOOKUP(calculate!$B24,$C$5:$H$32,2,FALSE)+VLOOKUP(calculate!$B23,$C$5:$H$32,3,FALSE)+$E$29+$D$30),(IF(AND(OR(calculate!$B22="NT",calculate!$B22=""),NOT(calculate!$B23="Ac")),10^(VLOOKUP(calculate!$B24,$C$5:$H$32,2,FALSE)+VLOOKUP(calculate!$B23,$C$5:$H$32,3,FALSE)+$E$29),(IF(AND(calculate!$B25="CT",NOT(calculate!$B24="NMe")),10^(VLOOKUP(calculate!$B24,$C$5:$H$32,2,FALSE)+VLOOKUP(calculate!$B23,$C$5:$H$32,3,FALSE)+$D$30),10^(VLOOKUP(calculate!$B24,$C$5:$H$32,2,FALSE)+VLOOKUP(calculate!$B23,$C$5:$H$32,3,FALSE))))))))) -> 0.1555728932 | S24: =IF(OR(calculate!$B24="P",calculate!$B24="",calculate!$B24="AC",calculate!$B24="NT",calculate!$B24="Pc",calculate!$B24="CT",calculate!$B23="NT")," ---",(IF(AND(OR(calculate!$B22="NT",calculate!$B22=""),calculate!$B25="CT",NOT(calculate!$B23="Ac"),NOT(calculate!$B24="NMe")),10^(VLOOKUP(calculate!$B24,$C$5:$H$32,5)+VLOOKUP(calculate!$B23,$C$5:$H$32,6)+$H$29+$G$30),(IF(AND(OR(calculate!$B22="NT",calculate!$B22=""),NOT(calculate!$B23="Ac")),10^(VLOOKUP(calculate!$B24,$C$5:$H$32,5)+VLOOKUP(calculate!$B23,$C$5:$H$32,6)+$H$29),(IF(AND(calculate!$B25="CT",NOT(calculate!$B24="NMe")),10^(VLOOKUP(calculate!$B24,$C$5:$H$32,5)+VLOOKUP(calculate!$B23,$C$5:$H$32,6)+$G$30),10^(VLOOKUP(calculate!$B24,$C$5:$H$32,5)+VLOOKUP(calculate!$B23,$C$5:$H$32,6))))))))) -> 3.799997837
A25: THREONINE | C25: T | D25: -0.79 | E25: -0.4680731257 | G25: -0.06625797984 | H25: 0.2 | K25: =IFERROR(IF(calculate!$B24=" ---","",$M$2*$AA$3*$Q$3*$R25),0) -> 2.281406898e-08 | L25: =IFERROR(IF(calculate!$B24=" ---","",$M$3*$AA$4*$Q$4*$S25),0) -> 0.635313332 | M25: =IFERROR(IF(calculate!$B24=" ---","",$M$4*$Q$5*$S25),0) -> 5.209684619e-05 | N25: =KDYŽ(NEBO(NEBO(calculate!$C$10="hr",calculate!$C$10="s"),calculate!$C$10="min"),KDYŽ(calculate!$C20=""," ---",(calculate!$D20/calculate!$C20))," ?") ->  | O25: =KDYŽ(NEBO(NEBO(calculate!$C$10="hr",calculate!$C$10="s"),calculate!$C$10="min"),KDYŽ(calculate!C20=""," ---",LOGZ(calculate!$D20/calculate!$C20))," ?") ->  | P25: =KDYŽ(NEBO(NEBO(calculate!$C$10="hr",calculate!$C$10="s"),calculate!$C$10="min"),KDYŽ(calculate!$C20="","",calculate!$C20/(calculate!$D20-calculate!$C20))," ?") ->  | Q25: =KDYŽ(calculate!$G20="","",KDYŽ(calculate!$G20=" ?"," ?",-1*$AA$5*calculate!$B$3*LN(calculate!$G20)/1000)) ->  | R25: =IF(OR(calculate!$B25="P",calculate!$B25="",calculate!$B25="AC",calculate!$B25="NT",calculate!$B25="Pc",calculate!$B25="CT",calculate!$B24="NT")," ---",(IF(AND(OR(calculate!$B23="NT",calculate!$B23=""),calculate!$B26="CT",NOT(calculate!$B24="Ac"),NOT(calculate!$B25="NMe")),10^(VLOOKUP(calculate!$B25,$C$5:$H$32,2,FALSE)+VLOOKUP(calculate!$B24,$C$5:$H$32,3,FALSE)+$E$29+$D$30),(IF(AND(OR(calculate!$B23="NT",calculate!$B23=""),NOT(calculate!$B24="Ac")),10^(VLOOKUP(calculate!$B25,$C$5:$H$32,2,FALSE)+VLOOKUP(calculate!$B24,$C$5:$H$32,3,FALSE)+$E$29),(IF(AND(calculate!$B26="CT",NOT(calculate!$B25="NMe")),10^(VLOOKUP(calculate!$B25,$C$5:$H$32,2,FALSE)+VLOOKUP(calculate!$B24,$C$5:$H$32,3,FALSE)+$D$30),10^(VLOOKUP(calculate!$B25,$C$5:$H$32,2,FALSE)+VLOOKUP(calculate!$B24,$C$5:$H$32,3,FALSE))))))))) -> 4.164757825 | S25: =IF(OR(calculate!$B25="P",calculate!$B25="",calculate!$B25="AC",calculate!$B25="NT",calculate!$B25="Pc",calculate!$B25="CT",calculate!$B24="NT")," ---",(IF(AND(OR(calculate!$B23="NT",calculate!$B23=""),calculate!$B26="CT",NOT(calculate!$B24="Ac"),NOT(calculate!$B25="NMe")),10^(VLOOKUP(calculate!$B25,$C$5:$H$32,5)+VLOOKUP(calculate!$B24,$C$5:$H$32,6)+$H$29+$G$30),(IF(AND(OR(calculate!$B23="NT",calculate!$B23=""),NOT(calculate!$B24="Ac")),10^(VLOOKUP(calculate!$B25,$C$5:$H$32,5)+VLOOKUP(calculate!$B24,$C$5:$H$32,6)+$H$29),(IF(AND(calculate!$B26="CT",NOT(calculate!$B25="NMe")),10^(VLOOKUP(calculate!$B25,$C$5:$H$32,5)+VLOOKUP(calculate!$B24,$C$5:$H$32,6)+$G$30),10^(VLOOKUP(calculate!$B25,$C$5:$H$32,5)+VLOOKUP(calculate!$B24,$C$5:$H$32,6))))))))) -> 0.6510881268
A26: VALINE | C26: V | D26: -0.7390222734 | E26: -0.3 | G26: -0.7019344833 | H26: -0.14 | K26: =IFERROR(IF(calculate!$B25=" ---","",$M$2*$AA$3*$Q$3*$R26),0) -> 5.349083117e-09 | L26: =IFERROR(IF(calculate!$B25=" ---","",$M$3*$AA$4*$Q$4*$S26),0) -> 0.7729463768 | M26: =IFERROR(IF(calculate!$B25=" ---","",$M$4*$Q$5*$S26),0) -> 6.338300564e-05 | N26: =KDYŽ(NEBO(NEBO(calculate!$C$10="hr",calculate!$C$10="s"),calculate!$C$10="min"),KDYŽ(calculate!$C21=""," ---",(calculate!$D21/calculate!$C21))," ?") ->  | O26: =KDYŽ(NEBO(NEBO(calculate!$C$10="hr",calculate!$C$10="s"),calculate!$C$10="min"),KDYŽ(calculate!C21=""," ---",LOGZ(calculate!$D21/calculate!$C21))," ?") ->  | P26: =KDYŽ(NEBO(NEBO(calculate!$C$10="hr",calculate!$C$10="s"),calculate!$C$10="min"),KDYŽ(calculate!$C21="","",calculate!$C21/(calculate!$D21-calculate!$C21))," ?") ->  | Q26: =KDYŽ(calculate!$G21="","",KDYŽ(calculate!$G21=" ?"," ?",-1*$AA$5*calculate!$B$3*LN(calculate!$G21)/1000)) ->  | R26: =IF(OR(calculate!$B26="P",calculate!$B26="",calculate!$B26="AC",calculate!$B26="NT",calculate!$B26="Pc",calculate!$B26="CT",calculate!$B25="NT")," ---",(IF(AND(OR(calculate!$B24="NT",calculate!$B24=""),calculate!$B27="CT",NOT(calculate!$B25="Ac"),NOT(calculate!$B26="NMe")),10^(VLOOKUP(calculate!$B26,$C$5:$H$32,2,FALSE)+VLOOKUP(calculate!$B25,$C$5:$H$32,3,FALSE)+$E$29+$D$30),(IF(AND(OR(calculate!$B24="NT",calculate!$B24=""),NOT(calculate!$B25="Ac")),10^(VLOOKUP(calculate!$B26,$C$5:$H$32,2,FALSE)+VLOOKUP(calculate!$B25,$C$5:$H$32,3,FALSE)+$E$29),(IF(AND(calculate!$B27="CT",NOT(calculate!$B26="NMe")),10^(VLOOKUP(calculate!$B26,$C$5:$H$32,2,FALSE)+VLOOKUP(calculate!$B25,$C$5:$H$32,3,FALSE)+$D$30),10^(VLOOKUP(calculate!$B26,$C$5:$H$32,2,FALSE)+VLOOKUP(calculate!$B25,$C$5:$H$32,3,FALSE))))))))) -> 0.9764867368 | S26: =IF(OR(calculate!$B26="P",calculate!$B26="",calculate!$B26="AC",calculate!$B26="NT",calculate!$B26="Pc",calculate!$B26="CT",calculate!$B25="NT")," ---",(IF(AND(OR(calculate!$B24="NT",calculate!$B24=""),calculate!$B27="CT",NOT(calculate!$B25="Ac"),NOT(calculate!$B26="NMe")),10^(VLOOKUP(calculate!$B26,$C$5:$H$32,5)+VLOOKUP(calculate!$B25,$C$5:$H$32,6)+$H$29+$G$30),(IF(AND(OR(calculate!$B24="NT",calculate!$B24=""),NOT(calculate!$B25="Ac")),10^(VLOOKUP(calculate!$B26,$C$5:$H$32,5)+VLOOKUP(calculate!$B25,$C$5:$H$32,6)+$H$29),(IF(AND(calculate!$B27="CT",NOT(calculate!$B26="NMe")),10^(VLOOKUP(calculate!$B26,$C$5:$H$32,5)+VLOOKUP(calculate!$B25,$C$5:$H$32,6)+$G$30),10^(VLOOKUP(calculate!$B26,$C$5:$H$32,5)+VLOOKUP(calculate!$B25,$C$5:$H$32,6))))))))) -> 0.7921385925
A27: TRYPTOPHANE | C27: W | D27: -0.4 | E27: -0.44 | G27: -0.41 | H27: -0.11 | K27: =IFERROR(IF(calculate!$B26=" ---","",$M$2*$AA$3*$Q$3*$R27),0) -> 9.563584946e-10 | L27: =IFERROR(IF(calculate!$B26=" ---","",$M$3*$AA$4*$Q$4*$S27),0) -> 3.796192208 | M27: =IFERROR(IF(calculate!$B26=" ---","",$M$4*$Q$5*$S27),0) -> 0.0003112946504 | N27: =KDYŽ(NEBO(NEBO(calculate!$C$10="hr",calculate!$C$10="s"),calculate!$C$10="min"),KDYŽ(calculate!$C22=""," ---",(calculate!$D22/calculate!$C22))," ?") ->  | O27: =KDYŽ(NEBO(NEBO(calculate!$C$10="hr",calculate!$C$10="s"),calculate!$C$10="min"),KDYŽ(calculate!C22=""," ---",LOGZ(calculate!$D22/calculate!$C22))," ?") ->  | P27: =KDYŽ(NEBO(NEBO(calculate!$C$10="hr",calculate!$C$10="s"),calculate!$C$10="min"),KDYŽ(calculate!$C22="","",calculate!$C22/(calculate!$D22-calculate!$C22))," ?") ->  | Q27: =KDYŽ(calculate!$G22="","",KDYŽ(calculate!$G22=" ?"," ?",-1*$AA$5*calculate!$B$3*LN(calculate!$G22)/1000)) ->  | R27: =IF(OR(calculate!$B27="P",calculate!$B27="",calculate!$B27="AC",calculate!$B27="NT",calculate!$B27="Pc",calculate!$B27="CT",calculate!$B26="NT")," ---",(IF(AND(OR(calculate!$B25="NT",calculate!$B25=""),calculate!$B28="CT",NOT(calculate!$B26="Ac"),NOT(calculate!$B27="NMe")),10^(VLOOKUP(calculate!$B27,$C$5:$H$32,2,FALSE)+VLOOKUP(calculate!$B26,$C$5:$H$32,3,FALSE)+$E$29+$D$30),(IF(AND(OR(calculate!$B25="NT",calculate!$B25=""),NOT(calculate!$B26="Ac")),10^(VLOOKUP(calculate!$B27,$C$5:$H$32,2,FALSE)+VLOOKUP(calculate!$B26,$C$5:$H$32,3,FALSE)+$E$29),(IF(AND(calculate!$B28="CT",NOT(calculate!$B27="NMe")),10^(VLOOKUP(calculate!$B27,$C$5:$H$32,2,FALSE)+VLOOKUP(calculate!$B26,$C$5:$H$32,3,FALSE)+$D$30),10^(VLOOKUP(calculate!$B27,$C$5:$H$32,2,FALSE)+VLOOKUP(calculate!$B26,$C$5:$H$32,3,FALSE))))))))) -> 0.1745853196 | S27: =IF(OR(calculate!$B27="P",calculate!$B27="",calculate!$B27="AC",calculate!$B27="NT",calculate!$B27="Pc",calculate!$B27="CT",calculate!$B26="NT")," ---",(IF(AND(OR(calculate!$B25="NT",calculate!$B25=""),calculate!$B28="CT",NOT(calculate!$B26="Ac"),NOT(calculate!$B27="NMe")),10^(VLOOKUP(calculate!$B27,$C$5:$H$32,5)+VLOOKUP(calculate!$B26,$C$5:$H$32,6)+$H$29+$G$30),(IF(AND(OR(calculate!$B25="NT",calculate!$B25=""),NOT(calculate!$B26="Ac")),10^(VLOOKUP(calculate!$B27,$C$5:$H$32,5)+VLOOKUP(calculate!$B26,$C$5:$H$32,6)+$H$29),(IF(AND(calculate!$B28="CT",NOT(calculate!$B27="NMe")),10^(VLOOKUP(calculate!$B27,$C$5:$H$32,5)+VLOOKUP(calculate!$B26,$C$5:$H$32,6)+$G$30),10^(VLOOKUP(calculate!$B27,$C$5:$H$32,5)+VLOOKUP(calculate!$B26,$C$5:$H$32,6))))))))) -> 3.89045145
A28: TYROSINE | C28: Y | D28: -0.41 | E28: -0.37 | G28: -0.27 | H28: 0.05 | K28: =IFERROR(IF(calculate!$B27=" ---","",$M$2*$AA$3*$Q$3*$R28),0) -> 6.167285631e-10 | L28: =IFERROR(IF(calculate!$B27=" ---","",$M$3*$AA$4*$Q$4*$S28),0) -> 1.773774794 | M28: =IFERROR(IF(calculate!$B27=" ---","",$M$4*$Q$5*$S28),0) -> 0.0001454527521 | N28: =KDYŽ(NEBO(NEBO(calculate!$C$10="hr",calculate!$C$10="s"),calculate!$C$10="min"),KDYŽ(calculate!$C23=""," ---",(calculate!$D23/calculate!$C23))," ?") ->  | O28: =KDYŽ(NEBO(NEBO(calculate!$C$10="hr",calculate!$C$10="s"),calculate!$C$10="min"),KDYŽ(calculate!C23=""," ---",LOGZ(calculate!$D23/calculate!$C23))," ?") ->  | P28: =KDYŽ(NEBO(NEBO(calculate!$C$10="hr",calculate!$C$10="s"),calculate!$C$10="min"),KDYŽ(calculate!$C23="","",calculate!$C23/(calculate!$D23-calculate!$C23))," ?") ->  | Q28: =KDYŽ(calculate!$G23="","",KDYŽ(calculate!$G23=" ?"," ?",-1*$AA$5*calculate!$B$3*LN(calculate!$G23)/1000)) ->  | R28: =IF(OR(calculate!$B28="P",calculate!$B28="",calculate!$B28="AC",calculate!$B28="NT",calculate!$B28="Pc",calculate!$B28="CT",calculate!$B27="NT")," ---",(IF(AND(OR(calculate!$B26="NT",calculate!$B26=""),calculate!$B29="CT",NOT(calculate!$B27="Ac"),NOT(calculate!$B28="NMe")),10^(VLOOKUP(calculate!$B28,$C$5:$H$32,2,FALSE)+VLOOKUP(calculate!$B27,$C$5:$H$32,3,FALSE)+$E$29+$D$30),(IF(AND(OR(calculate!$B26="NT",calculate!$B26=""),NOT(calculate!$B27="Ac")),10^(VLOOKUP(calculate!$B28,$C$5:$H$32,2,FALSE)+VLOOKUP(calculate!$B27,$C$5:$H$32,3,FALSE)+$E$29),(IF(AND(calculate!$B29="CT",NOT(calculate!$B28="NMe")),10^(VLOOKUP(calculate!$B28,$C$5:$H$32,2,FALSE)+VLOOKUP(calculate!$B27,$C$5:$H$32,3,FALSE)+$D$30),10^(VLOOKUP(calculate!$B28,$C$5:$H$32,2,FALSE)+VLOOKUP(calculate!$B27,$C$5:$H$32,3,FALSE))))))))) -> 0.1125851382 | S28: =IF(OR(calculate!$B28="P",calculate!$B28="",calculate!$B28="AC",calculate!$B28="NT",calculate!$B28="Pc",calculate!$B28="CT",calculate!$B27="NT")," ---",(IF(AND(OR(calculate!$B26="NT",calculate!$B26=""),calculate!$B29="CT",NOT(calculate!$B27="Ac"),NOT(calculate!$B28="NMe")),10^(VLOOKUP(calculate!$B28,$C$5:$H$32,5)+VLOOKUP(calculate!$B27,$C$5:$H$32,6)+$H$29+$G$30),(IF(AND(OR(calculate!$B26="NT",calculate!$B26=""),NOT(calculate!$B27="Ac")),10^(VLOOKUP(calculate!$B28,$C$5:$H$32,5)+VLOOKUP(calculate!$B27,$C$5:$H$32,6)+$H$29),(IF(AND(calculate!$B29="CT",NOT(calculate!$B28="NMe")),10^(VLOOKUP(calculate!$B28,$C$5:$H$32,5)+VLOOKUP(calculate!$B27,$C$5:$H$32,6)+$G$30),10^(VLOOKUP(calculate!$B28,$C$5:$H$32,5)+VLOOKUP(calculate!$B27,$C$5:$H$32,6))))))))) -> 1.817817523
A29: N-Term | C29: NT | D29: 0 | E29: -1.32 | G29: 0 | H29: 1.62 | K29: =IFERROR(IF(calculate!$B28=" ---","",$M$2*$AA$3*$Q$3*$R29),0) -> 3.546326099e-10 | L29: =IFERROR(IF(calculate!$B28=" ---","",$M$3*$AA$4*$Q$4*$S29),0) -> 0.4024731653 | M29: =IFERROR(IF(calculate!$B28=" ---","",$M$4*$Q$5*$S29),0) -> 3.300352996e-05 | N29: =KDYŽ(NEBO(NEBO(calculate!$C$10="hr",calculate!$C$10="s"),calculate!$C$10="min"),KDYŽ(calculate!$C24=""," ---",(calculate!$D24/calculate!$C24))," ?") ->  | O29: =KDYŽ(NEBO(NEBO(calculate!$C$10="hr",calculate!$C$10="s"),calculate!$C$10="min"),KDYŽ(calculate!C24=""," ---",LOGZ(calculate!$D24/calculate!$C24))," ?") ->  | P29: =KDYŽ(NEBO(NEBO(calculate!$C$10="hr",calculate!$C$10="s"),calculate!$C$10="min"),KDYŽ(calculate!$C24="","",calculate!$C24/(calculate!$D24-calculate!$C24))," ?") ->  | Q29: =KDYŽ(calculate!$G24="","",KDYŽ(calculate!$G24=" ?"," ?",-1*$AA$5*calculate!$B$3*LN(calculate!$G24)/1000)) ->  | R29: =IF(OR(calculate!$B29="P",calculate!$B29="",calculate!$B29="AC",calculate!$B29="NT",calculate!$B29="Pc",calculate!$B29="CT",calculate!$B28="NT")," ---",(IF(AND(OR(calculate!$B27="NT",calculate!$B27=""),calculate!$B30="CT",NOT(calculate!$B28="Ac"),NOT(calculate!$B29="NMe")),10^(VLOOKUP(calculate!$B29,$C$5:$H$32,2,FALSE)+VLOOKUP(calculate!$B28,$C$5:$H$32,3,FALSE)+$E$29+$D$30),(IF(AND(OR(calculate!$B27="NT",calculate!$B27=""),NOT(calculate!$B28="Ac")),10^(VLOOKUP(calculate!$B29,$C$5:$H$32,2,FALSE)+VLOOKUP(calculate!$B28,$C$5:$H$32,3,FALSE)+$E$29),(IF(AND(calculate!$B30="CT",NOT(calculate!$B29="NMe")),10^(VLOOKUP(calculate!$B29,$C$5:$H$32,2,FALSE)+VLOOKUP(calculate!$B28,$C$5:$H$32,3,FALSE)+$D$30),10^(VLOOKUP(calculate!$B29,$C$5:$H$32,2,FALSE)+VLOOKUP(calculate!$B28,$C$5:$H$32,3,FALSE))))))))) -> 0.06473895291 | S29: =IF(OR(calculate!$B29="P",calculate!$B29="",calculate!$B29="AC",calculate!$B29="NT",calculate!$B29="Pc",calculate!$B29="CT",calculate!$B28="NT")," ---",(IF(AND(OR(calculate!$B27="NT",calculate!$B27=""),calculate!$B30="CT",NOT(calculate!$B28="Ac"),NOT(calculate!$B29="NMe")),10^(VLOOKUP(calculate!$B29,$C$5:$H$32,5)+VLOOKUP(calculate!$B28,$C$5:$H$32,6)+$H$29+$G$30),(IF(AND(OR(calculate!$B27="NT",calculate!$B27=""),NOT(calculate!$B28="Ac")),10^(VLOOKUP(calculate!$B29,$C$5:$H$32,5)+VLOOKUP(calculate!$B28,$C$5:$H$32,6)+$H$29),(IF(AND(calculate!$B30="CT",NOT(calculate!$B29="NMe")),10^(VLOOKUP(calculate!$B29,$C$5:$H$32,5)+VLOOKUP(calculate!$B28,$C$5:$H$32,6)+$G$30),10^(VLOOKUP(calculate!$B29,$C$5:$H$32,5)+VLOOKUP(calculate!$B28,$C$5:$H$32,6))))))))) -> 0.4124665516
A30: C-Term | C30: CT | D30: =LOG(10^(0.05-calculate!$B$8)/(10^(-$K$4)+10^(-calculate!$B$8))+10^(0.96-$K$4)/(10^(-$K$4)+10^(-calculate!$B$8))) -> 0.9589702723 | G30: -1.8 | K30: =IFERROR(IF(calculate!$B29=" ---","",$M$2*$AA$3*$Q$3*$R30),0) -> 2.935944349e-09 | L30: =IFERROR(IF(calculate!$B29=" ---","",$M$3*$AA$4*$Q$4*$S30),0) -> 2.148979675 | M30: =IFERROR(IF(calculate!$B29=" ---","",$M$4*$Q$5*$S30),0) -> 0.0001762202333 | N30: =KDYŽ(NEBO(NEBO(calculate!$C$10="hr",calculate!$C$10="s"),calculate!$C$10="min"),KDYŽ(calculate!$C25=""," ---",(calculate!$D25/calculate!$C25))," ?") ->  | O30: =KDYŽ(NEBO(NEBO(calculate!$C$10="hr",calculate!$C$10="s"),calculate!$C$10="min"),KDYŽ(calculate!C25=""," ---",LOGZ(calculate!$D25/calculate!$C25))," ?") ->  | P30: =KDYŽ(NEBO(NEBO(calculate!$C$10="hr",calculate!$C$10="s"),calculate!$C$10="min"),KDYŽ(calculate!$C25="","",calculate!$C25/(calculate!$D25-calculate!$C25))," ?") ->  | Q30: =KDYŽ(calculate!$G25="","",KDYŽ(calculate!$G25=" ?"," ?",-1*$AA$5*calculate!$B$3*LN(calculate!$G25)/1000)) ->  | R30: =IF(OR(calculate!$B30="P",calculate!$B30="",calculate!$B30="AC",calculate!$B30="NT",calculate!$B30="Pc",calculate!$B30="CT",calculate!$B29="NT")," ---",(IF(AND(OR(calculate!$B28="NT",calculate!$B28=""),calculate!$B31="CT",NOT(calculate!$B29="Ac"),NOT(calculate!$B30="NMe")),10^(VLOOKUP(calculate!$B30,$C$5:$H$32,2,FALSE)+VLOOKUP(calculate!$B29,$C$5:$H$32,3,FALSE)+$E$29+$D$30),(IF(AND(OR(calculate!$B28="NT",calculate!$B28=""),NOT(calculate!$B29="Ac")),10^(VLOOKUP(calculate!$B30,$C$5:$H$32,2,FALSE)+VLOOKUP(calculate!$B29,$C$5:$H$32,3,FALSE)+$E$29),(IF(AND(calculate!$B31="CT",NOT(calculate!$B30="NMe")),10^(VLOOKUP(calculate!$B30,$C$5:$H$32,2,FALSE)+VLOOKUP(calculate!$B29,$C$5:$H$32,3,FALSE)+$D$30),10^(VLOOKUP(calculate!$B30,$C$5:$H$32,2,FALSE)+VLOOKUP(calculate!$B29,$C$5:$H$32,3,FALSE))))))))) -> 0.5359630154 | S30: =IF(OR(calculate!$B30="P",calculate!$B30="",calculate!$B30="AC",calculate!$B30="NT",calculate!$B30="Pc",calculate!$B30="CT",calculate!$B29="NT")," ---",(IF(AND(OR(calculate!$B28="NT",calculate!$B28=""),calculate!$B31="CT",NOT(calculate!$B29="Ac"),NOT(calculate!$B30="NMe")),10^(VLOOKUP(calculate!$B30,$C$5:$H$32,5)+VLOOKUP(calculate!$B29,$C$5:$H$32,6)+$H$29+$G$30),(IF(AND(OR(calculate!$B28="NT",calculate!$B28=""),NOT(calculate!$B29="Ac")),10^(VLOOKUP(calculate!$B30,$C$5:$H$32,5)+VLOOKUP(calculate!$B29,$C$5:$H$32,6)+$H$29),(IF(AND(calculate!$B31="CT",NOT(calculate!$B30="NMe")),10^(VLOOKUP(calculate!$B30,$C$5:$H$32,5)+VLOOKUP(calculate!$B29,$C$5:$H$32,6)+$G$30),10^(VLOOKUP(calculate!$B30,$C$5:$H$32,5)+VLOOKUP(calculate!$B29,$C$5:$H$32,6))))))))) -> 2.202338721
A31: -NHMe | C31: NMe | D31: =LOG(135.5/($M$2*60)) -> 0.5119392952 | G31: =LOG(2970000000/($M$3*60)) -> -0.5772435507 | K31: =IFERROR(IF(calculate!$B30=" ---","",$M$2*$AA$3*$Q$3*$R31),0) -> 1.17115128e-09 | L31: =IFERROR(IF(calculate!$B30=" ---","",$M$3*$AA$4*$Q$4*$S31),0) -> 8.498615742 | M31: =IFERROR(IF(calculate!$B30=" ---","",$M$4*$Q$5*$S31),0) -> 0.0006969019141 | N31: =KDYŽ(NEBO(NEBO(calculate!$C$10="hr",calculate!$C$10="s"),calculate!$C$10="min"),KDYŽ(calculate!$C26=""," ---",(calculate!$D26/calculate!$C26))," ?") ->  | O31: =KDYŽ(NEBO(NEBO(calculate!$C$10="hr",calculate!$C$10="s"),calculate!$C$10="min"),KDYŽ(calculate!C26=""," ---",LOGZ(calculate!$D26/calculate!$C26))," ?") ->  | P31: =KDYŽ(NEBO(NEBO(calculate!$C$10="hr",calculate!$C$10="s"),calculate!$C$10="min"),KDYŽ(calculate!$C26="","",calculate!$C26/(calculate!$D26-calculate!$C26))," ?") ->  | Q31: =KDYŽ(calculate!$G26="","",KDYŽ(calculate!$G26=" ?"," ?",-1*$AA$5*calculate!$B$3*LN(calculate!$G26)/1000)) ->  | R31: =IF(OR(calculate!$B31="P",calculate!$B31="",calculate!$B31="AC",calculate!$B31="NT",calculate!$B31="Pc",calculate!$B31="CT",calculate!$B30="NT")," ---",(IF(AND(OR(calculate!$B29="NT",calculate!$B29=""),calculate!$B32="CT",NOT(calculate!$B30="Ac"),NOT(calculate!$B31="NMe")),10^(VLOOKUP(calculate!$B31,$C$5:$H$32,2,FALSE)+VLOOKUP(calculate!$B30,$C$5:$H$32,3,FALSE)+$E$29+$D$30),(IF(AND(OR(calculate!$B29="NT",calculate!$B29=""),NOT(calculate!$B30="Ac")),10^(VLOOKUP(calculate!$B31,$C$5:$H$32,2,FALSE)+VLOOKUP(calculate!$B30,$C$5:$H$32,3,FALSE)+$E$29),(IF(AND(calculate!$B32="CT",NOT(calculate!$B31="NMe")),10^(VLOOKUP(calculate!$B31,$C$5:$H$32,2,FALSE)+VLOOKUP(calculate!$B30,$C$5:$H$32,3,FALSE)+$D$30),10^(VLOOKUP(calculate!$B31,$C$5:$H$32,2,FALSE)+VLOOKUP(calculate!$B30,$C$5:$H$32,3,FALSE))))))))) -> 0.213796209 | S31: =IF(OR(calculate!$B31="P",calculate!$B31="",calculate!$B31="AC",calculate!$B31="NT",calculate!$B31="Pc",calculate!$B31="CT",calculate!$B30="NT")," ---",(IF(AND(OR(calculate!$B29="NT",calculate!$B29=""),calculate!$B32="CT",NOT(calculate!$B30="Ac"),NOT(calculate!$B31="NMe")),10^(VLOOKUP(calculate!$B31,$C$5:$H$32,5)+VLOOKUP(calculate!$B30,$C$5:$H$32,6)+$H$29+$G$30),(IF(AND(OR(calculate!$B29="NT",calculate!$B29=""),NOT(calculate!$B30="Ac")),10^(VLOOKUP(calculate!$B31,$C$5:$H$32,5)+VLOOKUP(calculate!$B30,$C$5:$H$32,6)+$H$29),(IF(AND(calculate!$B32="CT",NOT(calculate!$B31="NMe")),10^(VLOOKUP(calculate!$B31,$C$5:$H$32,5)+VLOOKUP(calculate!$B30,$C$5:$H$32,6)+$G$30),10^(VLOOKUP(calculate!$B31,$C$5:$H$32,5)+VLOOKUP(calculate!$B30,$C$5:$H$32,6))))))))) -> 8.7096359
A32: H3CCO- | C32: Ac | E32: 0.293 | H32: -0.197 | K32: =IFERROR(IF(calculate!$B31=" ---","",$M$2*$AA$3*$Q$3*$R32),0) -> 2.336754014e-10 | L32: =IFERROR(IF(calculate!$B31=" ---","",$M$3*$AA$4*$Q$4*$S32),0) -> 0.644685932 | M32: =IFERROR(IF(calculate!$B31=" ---","",$M$4*$Q$5*$S32),0) -> 5.286541641e-05 | N32: =KDYŽ(NEBO(NEBO(calculate!$C$10="hr",calculate!$C$10="s"),calculate!$C$10="min"),KDYŽ(calculate!$C27=""," ---",(calculate!$D27/calculate!$C27))," ?") ->  | O32: =KDYŽ(NEBO(NEBO(calculate!$C$10="hr",calculate!$C$10="s"),calculate!$C$10="min"),KDYŽ(calculate!C27=""," ---",LOGZ(calculate!$D27/calculate!$C27))," ?") ->  | P32: =KDYŽ(NEBO(NEBO(calculate!$C$10="hr",calculate!$C$10="s"),calculate!$C$10="min"),KDYŽ(calculate!$C27="","",calculate!$C27/(calculate!$D27-calculate!$C27))," ?") ->  | Q32: =KDYŽ(calculate!$G27="","",KDYŽ(calculate!$G27=" ?"," ?",-1*$AA$5*calculate!$B$3*LN(calculate!$G27)/1000)) ->  | R32: =IF(OR(calculate!$B32="P",calculate!$B32="",calculate!$B32="AC",calculate!$B32="NT",calculate!$B32="Pc",calculate!$B32="CT",calculate!$B31="NT")," ---",(IF(AND(OR(calculate!$B30="NT",calculate!$B30=""),calculate!$B33="CT",NOT(calculate!$B31="Ac"),NOT(calculate!$B32="NMe")),10^(VLOOKUP(calculate!$B32,$C$5:$H$32,2,FALSE)+VLOOKUP(calculate!$B31,$C$5:$H$32,3,FALSE)+$E$29+$D$30),(IF(AND(OR(calculate!$B30="NT",calculate!$B30=""),NOT(calculate!$B31="Ac")),10^(VLOOKUP(calculate!$B32,$C$5:$H$32,2,FALSE)+VLOOKUP(calculate!$B31,$C$5:$H$32,3,FALSE)+$E$29),(IF(AND(calculate!$B33="CT",NOT(calculate!$B32="NMe")),10^(VLOOKUP(calculate!$B32,$C$5:$H$32,2,FALSE)+VLOOKUP(calculate!$B31,$C$5:$H$32,3,FALSE)+$D$30),10^(VLOOKUP(calculate!$B32,$C$5:$H$32,2,FALSE)+VLOOKUP(calculate!$B31,$C$5:$H$32,3,FALSE))))))))) -> 0.04265795188 | S32: =IF(OR(calculate!$B32="P",calculate!$B32="",calculate!$B32="AC",calculate!$B32="NT",calculate!$B32="Pc",calculate!$B32="CT",calculate!$B31="NT")," ---",(IF(AND(OR(calculate!$B30="NT",calculate!$B30=""),calculate!$B33="CT",NOT(calculate!$B31="Ac"),NOT(calculate!$B32="NMe")),10^(VLOOKUP(calculate!$B32,$C$5:$H$32,5)+VLOOKUP(calculate!$B31,$C$5:$H$32,6)+$H$29+$G$30),(IF(AND(OR(calculate!$B30="NT",calculate!$B30=""),NOT(calculate!$B31="Ac")),10^(VLOOKUP(calculate!$B32,$C$5:$H$32,5)+VLOOKUP(calculate!$B31,$C$5:$H$32,6)+$H$29),(IF(AND(calculate!$B33="CT",NOT(calculate!$B32="NMe")),10^(VLOOKUP(calculate!$B32,$C$5:$H$32,5)+VLOOKUP(calculate!$B31,$C$5:$H$32,6)+$G$30),10^(VLOOKUP(calculate!$B32,$C$5:$H$32,5)+VLOOKUP(calculate!$B31,$C$5:$H$32,6))))))))) -> 0.660693448
K33: =IFERROR(IF(calculate!$B32=" ---","",$M$2*$AA$3*$Q$3*$R33),0) -> 5.135949203e-10 | L33: =IFERROR(IF(calculate!$B32=" ---","",$M$3*$AA$4*$Q$4*$S33),0) -> 1.346939823 | M33: =IFERROR(IF(calculate!$B32=" ---","",$M$4*$Q$5*$S33),0) -> 0.00011045151 | N33: =KDYŽ(NEBO(NEBO(calculate!$C$10="hr",calculate!$C$10="s"),calculate!$C$10="min"),KDYŽ(calculate!$C28=""," ---",(calculate!$D28/calculate!$C28))," ?") ->  | O33: =KDYŽ(NEBO(NEBO(calculate!$C$10="hr",calculate!$C$10="s"),calculate!$C$10="min"),KDYŽ(calculate!C28=""," ---",LOGZ(calculate!$D28/calculate!$C28))," ?") ->  | P33: =KDYŽ(NEBO(NEBO(calculate!$C$10="hr",calculate!$C$10="s"),calculate!$C$10="min"),KDYŽ(calculate!$C28="","",calculate!$C28/(calculate!$D28-calculate!$C28))," ?") ->  | Q33: =KDYŽ(calculate!$G28="","",KDYŽ(calculate!$G28=" ?"," ?",-1*$AA$5*calculate!$B$3*LN(calculate!$G28)/1000)) ->  | R33: =IF(OR(calculate!$B33="P",calculate!$B33="",calculate!$B33="AC",calculate!$B33="NT",calculate!$B33="Pc",calculate!$B33="CT",calculate!$B32="NT")," ---",(IF(AND(OR(calculate!$B31="NT",calculate!$B31=""),calculate!$B34="CT",NOT(calculate!$B32="Ac"),NOT(calculate!$B33="NMe")),10^(VLOOKUP(calculate!$B33,$C$5:$H$32,2,FALSE)+VLOOKUP(calculate!$B32,$C$5:$H$32,3,FALSE)+$E$29+$D$30),(IF(AND(OR(calculate!$B31="NT",calculate!$B31=""),NOT(calculate!$B32="Ac")),10^(VLOOKUP(calculate!$B33,$C$5:$H$32,2,FALSE)+VLOOKUP(calculate!$B32,$C$5:$H$32,3,FALSE)+$E$29),(IF(AND(calculate!$B34="CT",NOT(calculate!$B33="NMe")),10^(VLOOKUP(calculate!$B33,$C$5:$H$32,2,FALSE)+VLOOKUP(calculate!$B32,$C$5:$H$32,3,FALSE)+$D$30),10^(VLOOKUP(calculate!$B33,$C$5:$H$32,2,FALSE)+VLOOKUP(calculate!$B32,$C$5:$H$32,3,FALSE))))))))) -> 0.09375786781 | S33: =IF(OR(calculate!$B33="P",calculate!$B33="",calculate!$B33="AC",calculate!$B33="NT",calculate!$B33="Pc",calculate!$B33="CT",calculate!$B32="NT")," ---",(IF(AND(OR(calculate!$B31="NT",calculate!$B31=""),calculate!$B34="CT",NOT(calculate!$B32="Ac"),NOT(calculate!$B33="NMe")),10^(VLOOKUP(calculate!$B33,$C$5:$H$32,5)+VLOOKUP(calculate!$B32,$C$5:$H$32,6)+$H$29+$G$30),(IF(AND(OR(calculate!$B31="NT",calculate!$B31=""),NOT(calculate!$B32="Ac")),10^(VLOOKUP(calculate!$B33,$C$5:$H$32,5)+VLOOKUP(calculate!$B32,$C$5:$H$32,6)+$H$29),(IF(AND(calculate!$B34="CT",NOT(calculate!$B33="NMe")),10^(VLOOKUP(calculate!$B33,$C$5:$H$32,5)+VLOOKUP(calculate!$B32,$C$5:$H$32,6)+$G$30),10^(VLOOKUP(calculate!$B33,$C$5:$H$32,5)+VLOOKUP(calculate!$B32,$C$5:$H$32,6))))))))) -> 1.380384265
K34: =IFERROR(IF(calculate!$B33=" ---","",$M$2*$AA$3*$Q$3*$R34),0) -> 1.349255083e-09 | L34: =IFERROR(IF(calculate!$B33=" ---","",$M$3*$AA$4*$Q$4*$S34),0) -> 3.598736496 | M34: =IFERROR(IF(calculate!$B33=" ---","",$M$4*$Q$5*$S34),0) -> 0.0002951029237 | N34: =KDYŽ(NEBO(NEBO(calculate!$C$10="hr",calculate!$C$10="s"),calculate!$C$10="min"),KDYŽ(calculate!$C29=""," ---",(calculate!$D29/calculate!$C29))," ?") ->  | O34: =KDYŽ(NEBO(NEBO(calculate!$C$10="hr",calculate!$C$10="s"),calculate!$C$10="min"),KDYŽ(calculate!C29=""," ---",LOGZ(calculate!$D29/calculate!$C29))," ?") ->  | P34: =KDYŽ(NEBO(NEBO(calculate!$C$10="hr",calculate!$C$10="s"),calculate!$C$10="min"),KDYŽ(calculate!$C29="","",calculate!$C29/(calculate!$D29-calculate!$C29))," ?") ->  | Q34: =KDYŽ(calculate!$G29="","",KDYŽ(calculate!$G29=" ?"," ?",-1*$AA$5*calculate!$B$3*LN(calculate!$G29)/1000)) ->  | R34: =IF(OR(calculate!$B34="P",calculate!$B34="",calculate!$B34="AC",calculate!$B34="NT",calculate!$B34="Pc",calculate!$B34="CT",calculate!$B33="NT")," ---",(IF(AND(OR(calculate!$B32="NT",calculate!$B32=""),calculate!$B35="CT",NOT(calculate!$B33="Ac"),NOT(calculate!$B34="NMe")),10^(VLOOKUP(calculate!$B34,$C$5:$H$32,2,FALSE)+VLOOKUP(calculate!$B33,$C$5:$H$32,3,FALSE)+$E$29+$D$30),(IF(AND(OR(calculate!$B32="NT",calculate!$B32=""),NOT(calculate!$B33="Ac")),10^(VLOOKUP(calculate!$B34,$C$5:$H$32,2,FALSE)+VLOOKUP(calculate!$B33,$C$5:$H$32,3,FALSE)+$E$29),(IF(AND(calculate!$B35="CT",NOT(calculate!$B34="NMe")),10^(VLOOKUP(calculate!$B34,$C$5:$H$32,2,FALSE)+VLOOKUP(calculate!$B33,$C$5:$H$32,3,FALSE)+$D$30),10^(VLOOKUP(calculate!$B34,$C$5:$H$32,2,FALSE)+VLOOKUP(calculate!$B33,$C$5:$H$32,3,FALSE))))))))) -> 0.2463094448 | S34: =IF(OR(calculate!$B34="P",calculate!$B34="",calculate!$B34="AC",calculate!$B34="NT",calculate!$B34="Pc",calculate!$B34="CT",calculate!$B33="NT")," ---",(IF(AND(OR(calculate!$B32="NT",calculate!$B32=""),calculate!$B35="CT",NOT(calculate!$B33="Ac"),NOT(calculate!$B34="NMe")),10^(VLOOKUP(calculate!$B34,$C$5:$H$32,5)+VLOOKUP(calculate!$B33,$C$5:$H$32,6)+$H$29+$G$30),(IF(AND(OR(calculate!$B32="NT",calculate!$B32=""),NOT(calculate!$B33="Ac")),10^(VLOOKUP(calculate!$B34,$C$5:$H$32,5)+VLOOKUP(calculate!$B33,$C$5:$H$32,6)+$H$29),(IF(AND(calculate!$B35="CT",NOT(calculate!$B34="NMe")),10^(VLOOKUP(calculate!$B34,$C$5:$H$32,5)+VLOOKUP(calculate!$B33,$C$5:$H$32,6)+$G$30),10^(VLOOKUP(calculate!$B34,$C$5:$H$32,5)+VLOOKUP(calculate!$B33,$C$5:$H$32,6))))))))) -> 3.688092924
K35: =IFERROR(IF(calculate!$B34=" ---","",$M$2*$AA$3*$Q$3*$R35),0) -> 0 | L35: =IFERROR(IF(calculate!$B34=" ---","",$M$3*$AA$4*$Q$4*$S35),0) -> 0 | M35: =IFERROR(IF(calculate!$B34=" ---","",$M$4*$Q$5*$S35),0) -> 0 | N35: =KDYŽ(NEBO(NEBO(calculate!$C$10="hr",calculate!$C$10="s"),calculate!$C$10="min"),KDYŽ(calculate!$C30=""," ---",(calculate!$D30/calculate!$C30))," ?") ->  | O35: =KDYŽ(NEBO(NEBO(calculate!$C$10="hr",calculate!$C$10="s"),calculate!$C$10="min"),KDYŽ(calculate!C30=""," ---",LOGZ(calculate!$D30/calculate!$C30))," ?") ->  | P35: =KDYŽ(NEBO(NEBO(calculate!$C$10="hr",calculate!$C$10="s"),calculate!$C$10="min"),KDYŽ(calculate!$C30="","",calculate!$C30/(calculate!$D30-calculate!$C30))," ?") ->  | Q35: =KDYŽ(calculate!$G30="","",KDYŽ(calculate!$G30=" ?"," ?",-1*$AA$5*calculate!$B$3*LN(calculate!$G30)/1000)) ->  | R35: =IF(OR(calculate!$B35="P",calculate!$B35="",calculate!$B35="AC",calculate!$B35="NT",calculate!$B35="Pc",calculate!$B35="CT",calculate!$B34="NT")," ---",(IF(AND(OR(calculate!$B33="NT",calculate!$B33=""),calculate!$B36="CT",NOT(calculate!$B34="Ac"),NOT(calculate!$B35="NMe")),10^(VLOOKUP(calculate!$B35,$C$5:$H$32,2,FALSE)+VLOOKUP(calculate!$B34,$C$5:$H$32,3,FALSE)+$E$29+$D$30),(IF(AND(OR(calculate!$B33="NT",calculate!$B33=""),NOT(calculate!$B34="Ac")),10^(VLOOKUP(calculate!$B35,$C$5:$H$32,2,FALSE)+VLOOKUP(calculate!$B34,$C$5:$H$32,3,FALSE)+$E$29),(IF(AND(calculate!$B36="CT",NOT(calculate!$B35="NMe")),10^(VLOOKUP(calculate!$B35,$C$5:$H$32,2,FALSE)+VLOOKUP(calculate!$B34,$C$5:$H$32,3,FALSE)+$D$30),10^(VLOOKUP(calculate!$B35,$C$5:$H$32,2,FALSE)+VLOOKUP(calculate!$B34,$C$5:$H$32,3,FALSE))))))))) -> --- | S35: =IF(OR(calculate!$B35="P",calculate!$B35="",calculate!$B35="AC",calculate!$B35="NT",calculate!$B35="Pc",calculate!$B35="CT",calculate!$B34="NT")," ---",(IF(AND(OR(calculate!$B33="NT",calculate!$B33=""),calculate!$B36="CT",NOT(calculate!$B34="Ac"),NOT(calculate!$B35="NMe")),10^(VLOOKUP(calculate!$B35,$C$5:$H$32,5)+VLOOKUP(calculate!$B34,$C$5:$H$32,6)+$H$29+$G$30),(IF(AND(OR(calculate!$B33="NT",calculate!$B33=""),NOT(calculate!$B34="Ac")),10^(VLOOKUP(calculate!$B35,$C$5:$H$32,5)+VLOOKUP(calculate!$B34,$C$5:$H$32,6)+$H$29),(IF(AND(calculate!$B36="CT",NOT(calculate!$B35="NMe")),10^(VLOOKUP(calculate!$B35,$C$5:$H$32,5)+VLOOKUP(calculate!$B34,$C$5:$H$32,6)+$G$30),10^(VLOOKUP(calculate!$B35,$C$5:$H$32,5)+VLOOKUP(calculate!$B34,$C$5:$H$32,6))))))))) -> ---
K36: =IFERROR(IF(calculate!$B35=" ---","",$M$2*$AA$3*$Q$3*$R36),0) -> 5.80480352e-09 | L36: =IFERROR(IF(calculate!$B35=" ---","",$M$3*$AA$4*$Q$4*$S36),0) -> 0.008899143162 | M36: =IFERROR(IF(calculate!$B35=" ---","",$M$4*$Q$5*$S36),0) -> 7.297458895e-07 | N36: =KDYŽ(NEBO(NEBO(calculate!$C$10="hr",calculate!$C$10="s"),calculate!$C$10="min"),KDYŽ(calculate!$C31=""," ---",(calculate!$D31/calculate!$C31))," ?") ->  | O36: =KDYŽ(NEBO(NEBO(calculate!$C$10="hr",calculate!$C$10="s"),calculate!$C$10="min"),KDYŽ(calculate!C31=""," ---",LOGZ(calculate!$D31/calculate!$C31))," ?") ->  | P36: =KDYŽ(NEBO(NEBO(calculate!$C$10="hr",calculate!$C$10="s"),calculate!$C$10="min"),KDYŽ(calculate!$C31="","",calculate!$C31/(calculate!$D31-calculate!$C31))," ?") ->  | Q36: =KDYŽ(calculate!$G31="","",KDYŽ(calculate!$G31=" ?"," ?",-1*$AA$5*calculate!$B$3*LN(calculate!$G31)/1000)) ->  | R36: =IF(OR(calculate!$B36="P",calculate!$B36="",calculate!$B36="AC",calculate!$B36="NT",calculate!$B36="Pc",calculate!$B36="CT",calculate!$B35="NT")," ---",(IF(AND(OR(calculate!$B34="NT",calculate!$B34=""),calculate!$B37="CT",NOT(calculate!$B35="Ac"),NOT(calculate!$B36="NMe")),10^(VLOOKUP(calculate!$B36,$C$5:$H$32,2,FALSE)+VLOOKUP(calculate!$B35,$C$5:$H$32,3,FALSE)+$E$29+$D$30),(IF(AND(OR(calculate!$B34="NT",calculate!$B34=""),NOT(calculate!$B35="Ac")),10^(VLOOKUP(calculate!$B36,$C$5:$H$32,2,FALSE)+VLOOKUP(calculate!$B35,$C$5:$H$32,3,FALSE)+$E$29),(IF(AND(calculate!$B37="CT",NOT(calculate!$B36="NMe")),10^(VLOOKUP(calculate!$B36,$C$5:$H$32,2,FALSE)+VLOOKUP(calculate!$B35,$C$5:$H$32,3,FALSE)+$D$30),10^(VLOOKUP(calculate!$B36,$C$5:$H$32,2,FALSE)+VLOOKUP(calculate!$B35,$C$5:$H$32,3,FALSE))))))))) -> 1.059679486 | S36: =IF(OR(calculate!$B36="P",calculate!$B36="",calculate!$B36="AC",calculate!$B36="NT",calculate!$B36="Pc",calculate!$B36="CT",calculate!$B35="NT")," ---",(IF(AND(OR(calculate!$B34="NT",calculate!$B34=""),calculate!$B37="CT",NOT(calculate!$B35="Ac"),NOT(calculate!$B36="NMe")),10^(VLOOKUP(calculate!$B36,$C$5:$H$32,5)+VLOOKUP(calculate!$B35,$C$5:$H$32,6)+$H$29+$G$30),(IF(AND(OR(calculate!$B34="NT",calculate!$B34=""),NOT(calculate!$B35="Ac")),10^(VLOOKUP(calculate!$B36,$C$5:$H$32,5)+VLOOKUP(calculate!$B35,$C$5:$H$32,6)+$H$29),(IF(AND(calculate!$B37="CT",NOT(calculate!$B36="NMe")),10^(VLOOKUP(calculate!$B36,$C$5:$H$32,5)+VLOOKUP(calculate!$B35,$C$5:$H$32,6)+$G$30),10^(VLOOKUP(calculate!$B36,$C$5:$H$32,5)+VLOOKUP(calculate!$B35,$C$5:$H$32,6))))))))) -> 0.009120108394
K37: =IFERROR(IF(calculate!$B36=" ---","",$M$2*$AA$3*$Q$3*$R37),0) -> 0 | L37: =IFERROR(IF(calculate!$B36=" ---","",$M$3*$AA$4*$Q$4*$S37),0) -> 0 | M37: =IFERROR(IF(calculate!$B36=" ---","",$M$4*$Q$5*$S37),0) -> 0 | N37: =KDYŽ(NEBO(NEBO(calculate!$C$10="hr",calculate!$C$10="s"),calculate!$C$10="min"),KDYŽ(calculate!$C32=""," ---",(calculate!$D32/calculate!$C32))," ?") ->  | O37: =KDYŽ(NEBO(NEBO(calculate!$C$10="hr",calculate!$C$10="s"),calculate!$C$10="min"),KDYŽ(calculate!C32=""," ---",LOGZ(calculate!$D32/calculate!$C32))," ?") ->  | P37: =KDYŽ(NEBO(NEBO(calculate!$C$10="hr",calculate!$C$10="s"),calculate!$C$10="min"),KDYŽ(calculate!$C32="","",calculate!$C32/(calculate!$D32-calculate!$C32))," ?") ->  | Q37: =KDYŽ(calculate!$G32="","",KDYŽ(calculate!$G32=" ?"," ?",-1*$AA$5*calculate!$B$3*LN(calculate!$G32)/1000)) ->  | R37: =IF(OR(calculate!$B37="P",calculate!$B37="",calculate!$B37="AC",calculate!$B37="NT",calculate!$B37="Pc",calculate!$B37="CT",calculate!$B36="NT")," ---",(IF(AND(OR(calculate!$B35="NT",calculate!$B35=""),calculate!$B38="CT",NOT(calculate!$B36="Ac"),NOT(calculate!$B37="NMe")),10^(VLOOKUP(calculate!$B37,$C$5:$H$32,2,FALSE)+VLOOKUP(calculate!$B36,$C$5:$H$32,3,FALSE)+$E$29+$D$30),(IF(AND(OR(calculate!$B35="NT",calculate!$B35=""),NOT(calculate!$B36="Ac")),10^(VLOOKUP(calculate!$B37,$C$5:$H$32,2,FALSE)+VLOOKUP(calculate!$B36,$C$5:$H$32,3,FALSE)+$E$29),(IF(AND(calculate!$B38="CT",NOT(calculate!$B37="NMe")),10^(VLOOKUP(calculate!$B37,$C$5:$H$32,2,FALSE)+VLOOKUP(calculate!$B36,$C$5:$H$32,3,FALSE)+$D$30),10^(VLOOKUP(calculate!$B37,$C$5:$H$32,2,FALSE)+VLOOKUP(calculate!$B36,$C$5:$H$32,3,FALSE))))))))) -> --- | S37: =IF(OR(calculate!$B37="P",calculate!$B37="",calculate!$B37="AC",calculate!$B37="NT",calculate!$B37="Pc",calculate!$B37="CT",calculate!$B36="NT")," ---",(IF(AND(OR(calculate!$B35="NT",calculate!$B35=""),calculate!$B38="CT",NOT(calculate!$B36="Ac"),NOT(calculate!$B37="NMe")),10^(VLOOKUP(calculate!$B37,$C$5:$H$32,5)+VLOOKUP(calculate!$B36,$C$5:$H$32,6)+$H$29+$G$30),(IF(AND(OR(calculate!$B35="NT",calculate!$B35=""),NOT(calculate!$B36="Ac")),10^(VLOOKUP(calculate!$B37,$C$5:$H$32,5)+VLOOKUP(calculate!$B36,$C$5:$H$32,6)+$H$29),(IF(AND(calculate!$B38="CT",NOT(calculate!$B37="NMe")),10^(VLOOKUP(calculate!$B37,$C$5:$H$32,5)+VLOOKUP(calculate!$B36,$C$5:$H$32,6)+$G$30),10^(VLOOKUP(calculate!$B37,$C$5:$H$32,5)+VLOOKUP(calculate!$B36,$C$5:$H$32,6))))))))) -> ---
